Workbook

Sheet Dashboard (hidden)
G2: 1
B3: Sex | C3: masculino | E3: Activity | F3: por semana | G3: Activity Factor
B4: Weight (pounds) | C4: 145 | D4: =C4*D41 -> 65.77084 | E4: poca | F4: 1 or less | G4: 1.2
B5: Height (inches) | C5: 68.11023622 | D5: =C5*2.54 -> 173 | E5: ligera | F5: 1 to 3 times | G5: 1.375
B6: Age (years) | C6: 25 | E6: moderada | F6: 3 to 5 times | G6: 1.55
B7: Activity Factor | C7: 1.9 | E7: intensa | F7: 6 or 7 times | G7: 1.725
E8: alta | F8: Im an athlete! | G8: 1.9
D10: Kcalories | E10: Protein (g) | F10: Carbs (g) | G10: Fat (g)
C11: Breakfast | D11: =Breakfast!C17 -> 26 | E11: =Breakfast!D14 -> 0 | F11: =Breakfast!E14 -> 0 | G11: =Breakfast!F14 -> 0
C12: Lunch | D12: =Lunch!C14 -> 24 | E12: =Lunch!D14 -> 0 | F12: =Lunch!E14 -> 0 | G12: =Lunch!F14 -> 0
C13: Dinner | D13: =Dinner!C14 -> 8.5 | E13: =Dinner!D14 -> 0 | F13: =Dinner!E14 -> 0 | G13: =Dinner!F14 -> 0
C14: Nutrients Totals: | D14: =SUM(D11:D13) -> 58.5 | E14: =SUM(E11:E13) -> 0 | F14: 0 | G14: 0
B16: Required Nutrients: | C16: ( Hombre ) | D16: 1980.625 | E16: =D16*0.12 -> 237.675 | F16: =D16*0.06 -> 118.8375 | G16: =D16*0.02 -> 39.6125
C17: ( Mujer ) | D17: 2423.101091 | E17: =D17*0.12 -> 290.7721309 | F17: =D17*0.06 -> 145.3860655 | G17: =D17*0.02 -> 48.46202182
E19: 0.12 | F19: 0.06 | G19: 0.02
E21: =D16*0.225/4 -> 111.4101562 | F21: =D16*0.55/4 -> 272.3359375 | G21: =D16*0.3/9 -> 66.02083333
E22: =E21/D16 -> 0.05625 | F22: =F21/D16 -> 0.1375 | G22: =G21/D16 -> 0.03333333333
D24: % Kcalories
C25: Macronutrient | D25: 1-3 anos | E25: 4-18 anos | F25: > 18 anos
C26: Protein | D26: 12.5 | E26: 20 | F26: 22.5
C27: Carbs | D27: 55 | E27: 55 | F27: 55
C28: Fat | D28: 35 | E28: 30 | F28: 30
C31: Protein | D31: 4 | E31: Kcalories / g
C32: Carbs | D32: 4 | E32: Kcalories / g
C33: Fat | D33: 9 | E33: Kcalories / g
B35: Fórmula para el cálculo de calorias | D35: La fórmula de Harris-Benedict
B36: Hombre: [66 + (13.7 x Peso en kg) ] + [ (5 x Altura en cm) – (6.8 x Edad en años)] x Factor de actividad
B37: Mujer: [666 + (9.6 x Peso en kg) ] + [ (1.8 x Altura en cm) – (4.7 x Edad en años)] x Factor de actividad
D41: 0.453592

Sheet Welcome

Sheet Breakfast
B3: Breakfast Item (These are half servings) | C3: Calories
B4: cottage cheese, nonfat | C4: 36
B5: egg white | C5: 24
B6: egg yolk | C6: 158.5
B7: barley | C7: 176
B8: croissants, butter | C8: 203
B9: apples | C9: 26
B10: bananas | C10: 44.5
B11: honeydew melon | C11: 18
B12: kiwi fruit | C12: 30.5
B13: papayas | C13: 19.5
B14: peaches | C14: 19.5
B15: pears | C15: 29
B16: pineapple | C16: 25
B17: raspberries | C17: 26
C25: 835.5

Sheet Lunch
B3: Lunch Item (These are half servings) | C3: Calories
B4: almonds | C4: 287.5
B5: blood sausage | C5: 189.5
B6: crab | C6: 43.5
B7: flatfish (sole, flounder) | C7: 45.5
B8: beets | C8: 21.5
B9: brussels sprouts | C9: 21.5
B10: carrots | C10: 20.5
B11: cucumber | C11: 6
B12: mushrooms, white | C12: 11
B13: peas | C13: 170.5
B14: apricots | C14: 24
B15: blueberries | C15: 28.5
B16: cantaloupe, melon | C16: 17
B17: cherries, sour | C17: 25
B18: grapefruit | C18: 16
B19: raisins, dried | C19: 149.5
B20: lima beans | C20: 169
B21: cheese, gouda | C21: 178
C25: 1424

Sheet Dinner
B3: Dinner Item (These are half servings) | C3: Calories
B4: beef, lean | C4: 70.5
B5: chicken, breast meat | C5: 57
B6: chickpeas | C6: 182
B7: bread, white, toasted | C7: 146.5
B8: coconut | C8: 177
B9: asparagus | C9: 10
B10: aubergine (eggplant) | C10: 12
B11: broccoli | C11: 17
B12: cabbage | C12: 12.5
B13: cauliflower | C13: 12.5
B14: chicory (witlof) | C14: 8.5
B15: collard | C15: 15
B16: kale | C16: 25
B17: lettuce, green | C17: 7.5
B18: okra | C18: 15.5
B19: onions | C19: 20
B20: brownies | C20: 202.5
B21: beans, black | C21: 170.5
B22: corn (maize), raw | C22: 43
B23: french fries | C23: 165.5
B24: mungo beans | C24: 170.5
C30: 1077

Sheet Help

Sheet Data (hidden)
A2: Categories | B2: Product | C2: Kcal | D2: Protein (g) | E2: Carbs (g) | F2: Fat (g) | G2: Vit A (IU) | H2: Vit B-1 | I2: Vit B-2 | J2: Vit B-3 | K2: Vit B-5 | L2: Vit B-6 | M2: Vit B-9 | N2: Vit B-12 | O2: Vit C | P2: Vit D (IU) | Q2: Vit E | R2: Vit K | S2: Choline | T2: Calcium | U2: Copper | V2: Iron | W2: Magnesium | X2: Manganese | Y2: Phosphorus | Z2: Potassium | AA2: Selenium | AB2: Sodium | AC2: Zinc | AD2: Water (g) | AE2: Fiber (g) | AF2: Cholesterol (mg) | AG2: Saturated fat (g) | AH2: MonoUns fat (g) | AI2: PolyUns fat (g) | AJ2: Sugars (g) | AK2: Glycemic Index
A3: Nut | B3: almonds | C3: 287.5 | D3: =C3/2 -> 143.75 | E3: 21.67 | F3: 49.42 | G3: 1 | H3: 211 | I3: 1014 | J3: 3385 | K3: 469 | L3: 143 | M3: 50 | N3: 0 | O3: 0 | P3: 0 | Q3: 26220 | R3: 0 | S3: 52100 | T3: 264000 | U3: 996 | V3: 3720 | W3: 268000 | X3: 2285 | Y3: 484000 | Z3: 705000 | AA3: 2.5 | AB3: 1000 | AC3: 3080 | AD3: 4.7 | AE3: 12.2 | AF3: 0 | AG3: 3.731 | AH3: 30.889 | AI3: 12.07 | AJ3: 3.89 | AK3: 15
B4: amino acids, BCAA's | C4: 200 | D4: =C4/2 -> 100 | E4: 0 | F4: 0 | G4: 0 | H4: 0 | I4: 0 | J4: 0 | K4: 0 | L4: 0 | M4: 0 | N4: 0 | O4: 0 | P4: 0 | Q4: 0 | R4: 0 | S4: 0 | T4: 0 | U4: 0 | V4: 0 | W4: 0 | X4: 0 | Y4: 0 | Z4: 0 | AA4: 0 | AB4: 0 | AC4: 0 | AD4: 0 | AE4: 0 | AF4: 0 | AG4: 0 | AH4: 0 | AI4: 0 | AJ4: 0 | AK4: 0
B5: amino acids, EAA's | C5: 200 | D5: 100 | E5: 0 | F5: 0 | G5: 0 | H5: 0 | I5: 0 | J5: 0 | K5: 0 | L5: 0 | M5: 0 | N5: 0 | O5: 0 | P5: 0 | Q5: 0 | R5: 0 | S5: 0 | T5: 0 | U5: 0 | V5: 0 | W5: 0 | X5: 0 | Y5: 0 | Z5: 0 | AA5: 0 | AB5: 0 | AC5: 0 | AD5: 0 | AE5: 0 | AF5: 0 | AG5: 0 | AH5: 0 | AI5: 0 | AJ5: 0 | AK5: 0
A6: Beverage | B6: apple juice | C6: 23 | D6: 11.5 | E6: 11.3 | F6: 0.13 | G6: 1 | H6: 21 | I6: 17 | J6: 73 | K6: 49 | L6: 18 | M6: 0 | N6: 0 | O6: 900 | P6: 0 | Q6: 10 | R6: 0 | S6: 1800 | T6: 8000 | U6: 12 | V6: 120 | W6: 5000 | X6: 74 | Y6: 7000 | Z6: 101000 | AA6: 0.1 | AB6: 4000 | AC6: 20 | AD6: 88.24 | AE6: 0.2 | AF6: 0 | AG6: 0.022 | AH6: 0.006 | AI6: 0.039 | AJ6: 9.62 | AK6: 42
A7: Fruit | B7: apples | C7: 26 | D7: 13 | E7: 13.81 | F7: 0.17 | G7: 54 | H7: 17 | I7: 26 | J7: 91 | K7: 61 | L7: 41 | M7: 3 | N7: 0 | O7: 4600 | P7: 0 | Q7: 180 | R7: 2.2 | S7: 3400 | T7: 6000 | U7: 27 | V7: 120 | W7: 5000 | X7: 35 | Y7: 11000 | Z7: 107000 | AA7: 0 | AB7: 1000 | AC7: 40 | AD7: 85.56 | AE7: 2.4 | AF7: 0 | AG7: 0.028 | AH7: 0.007 | AI7: 0.051 | AJ7: 10.39 | AK7: 36
A8: Lunch Fruit | B8: apricots | C8: 24 | D8: 12 | E8: 11.12 | F8: 0.39 | G8: 1926 | H8: 30 | I8: 40 | J8: 600 | K8: 240 | L8: 54 | M8: 9 | N8: 0 | O8: 10000 | P8: 0 | Q8: 890 | R8: 3.3 | S8: 2800 | T8: 13000 | U8: 78 | V8: 390 | W8: 10000 | X8: 77 | Y8: 23000 | Z8: 259000 | AA8: 0.1 | AB8: 1000 | AC8: 200 | AD8: 86.35 | AE8: 2 | AF8: 0 | AG8: 0.027 | AH8: 0.17 | AI8: 0.077 | AJ8: 9.24 | AK8: 45
B9: apricots, dried | C9: 120.5 | D9: 60.25 | E9: 62.64 | F9: 0.51 | G9: 3604 | H9: 15 | I9: 74 | J9: 2589 | K9: 516 | L9: 143 | M9: 10 | N9: 0 | O9: 1000 | P9: 0 | Q9: 4330 | R9: 3.1 | S9: 13900 | T9: 55000 | U9: 343 | V9: 2660 | W9: 32000 | X9: 235 | Y9: 71000 | Z9: 1162000 | AA9: 2.2 | AB9: 10000 | AC9: 390 | AD9: 30.89 | AE9: 7.3 | AF9: 0 | AG9: 0.017 | AH9: 0.074 | AI9: 0.074 | AJ9: 53.44 | AK9: 31
A10: Dinner Vegetable | B10: asparagus | C10: 10 | D10: 5 | E10: 3.88 | F10: 0.12 | G10: 756 | H10: 143 | I10: 141 | J10: 978 | K10: 274 | L10: 91 | M10: 52 | N10: 0 | O10: 5600 | P10: 0 | Q10: 1130 | R10: 41.6 | S10: 16000 | T10: 24000 | U10: 189 | V10: 2140 | W10: 14000 | X10: 158 | Y10: 52000 | Z10: 202000 | AA10: 2.3 | AB10: 2000 | AC10: 540 | AD10: 93.22 | AE10: 2.1 | AF10: 0 | AG10: 0.04 | AH10: 0 | AI10: 0.05 | AJ10: 1.88 | AK10: 15
A11: Dinner Vegetable | B11: aubergine (eggplant) | C11: 12 | D11: 6 | E11: 5.7 | F11: 0.19 | G11: 27 | H11: 39 | I11: 37 | J11: 649 | K11: 281 | L11: 84 | M11: 22 | N11: 0 | O11: 2200 | P11: 0 | Q11: 300 | R11: 3.5 | S11: 6900 | T11: 9000 | U11: 82 | V11: 240 | W11: 14000 | X11: 250 | Y11: 25000 | Z11: 230000 | AA11: 0.3 | AB11: 2000 | AC11: 160 | AD11: 92.41 | AE11: 3.4 | AF11: 0 | AG11: 0.034 | AH11: 0.016 | AI11: 0.076 | AJ11: 2.35 | AK11: 20
A12: Fruit | B12: bananas | C12: 44.5 | D12: 22.25 | E12: 22.84 | F12: 0.33 | G12: 64 | H12: 31 | I12: 73 | J12: 665 | K12: 334 | L12: 367 | M12: 20 | N12: 0 | O12: 8700 | P12: 0 | Q12: 100 | R12: 0.5 | S12: 9800 | T12: 5000 | U12: 78 | V12: 260 | W12: 27000 | X12: 270 | Y12: 22000 | Z12: 358000 | AA12: 1 | AB12: 1000 | AC12: 150 | AD12: 74.91 | AE12: 2.6 | AF12: 0 | AG12: 0.112 | AH12: 0.032 | AI12: 0.073 | AJ12: 12.23 | AK12: 53
A13: Breakfast Grain | B13: barley | C13: 176 | D13: 88 | E13: 77.72 | F13: 1.16 | G13: 22 | H13: 191 | I13: 114 | J13: 4604 | K13: 282 | L13: 260 | M13: 23 | N13: 0 | O13: 0 | P13: 0 | Q13: 20 | R13: 2.2 | S13: 37800 | T13: 29000 | U13: 420 | V13: 2500 | W13: 79000 | X13: 1322 | Y13: 221000 | Z13: 280000 | AA13: 37.7 | AB13: 9000 | AC13: 2130 | AD13: 10.09 | AE13: 15.6 | AF13: 0 | AG13: 0.244 | AH13: 0.149 | AI13: 0.56 | AJ13: 0.8 | AK13: 30
A14: Dinner Starch | B14: beans, black | C14: 170.5 | D14: 85.25 | E14: 62.36 | F14: 1.42 | G14: 0 | H14: 900 | I14: 193 | J14: 1955 | K14: 899 | L14: 286 | M14: 444 | N14: 0 | O14: 0 | P14: 0 | Q14: 210 | R14: 5.6 | S14: 66400 | T14: 123000 | U14: 841 | V14: 5020 | W14: 171000 | X14: 1060 | Y14: 352000 | Z14: 1483000 | AA14: 3.2 | AB14: 5000 | AC14: 3650 | AD14: 11.02 | AE14: 15.2 | AF14: 0 | AG14: 0.366 | AH14: 0.123 | AI14: 0.61 | AJ14: 2.12 | AK14: 30
B15: beans, kidney | C15: 166.5 | D15: 83.25 | E15: 60.01 | F15: 0.83 | G15: 0 | H15: 529 | I15: 219 | J15: 2060 | K15: 780 | L15: 397 | M15: 394 | N15: 0 | O15: 4500 | P15: 0 | Q15: 220 | R15: 19 | S15: 0 | T15: 143000 | U15: 958 | V15: 8200 | W15: 140000 | X15: 1021 | Y15: 407000 | Z15: 1406000 | AA15: 3.2 | AB15: 24000 | AC15: 2790 | AD15: 11.75 | AE15: 24.9 | AF15: 0 | AG15: 0.12 | AH15: 0.064 | AI15: 0.457 | AJ15: 2.23 | AK15: 30
B16: beans, pink | C16: 171.5 | D16: 85.75 | E16: 64.19 | F16: 1.13 | G16: 0 | H16: 772 | I16: 192 | J16: 1892 | K16: 997 | L16: 527 | M16: 463 | N16: 0 | O16: 0 | P16: 0 | Q16: 210 | R16: 5.7 | S16: 67200 | T16: 130000 | U16: 810 | V16: 6770 | W16: 182000 | X16: 1376 | Y16: 415000 | Z16: 1464000 | AA16: 13 | AB16: 8000 | AC16: 2550 | AD16: 10.06 | AE16: 12.7 | AF16: 0 | AG16: 0.292 | AH16: 0.098 | AI16: 0.487 | AJ16: 2.14 | AK16: 30
B17: beans, pinto | C17: 173.5 | D17: 86.75 | E17: 62.55 | F17: 1.23 | G17: 0 | H17: 713 | I17: 212 | J17: 1174 | K17: 785 | L17: 474 | M17: 525 | N17: 0 | O17: 6300 | P17: 0 | Q17: 210 | R17: 5.6 | S17: 66200 | T17: 113000 | U17: 893 | V17: 5070 | W17: 176000 | X17: 1148 | Y17: 411000 | Z17: 1393000 | AA17: 27.9 | AB17: 12000 | AC17: 2280 | AD17: 11.33 | AE17: 15.5 | AF17: 0 | AG17: 0.235 | AH17: 0.229 | AI17: 0.407 | AJ17: 2.11 | AK17: 30
B18: beans, red (kidney) | C18: 168.5 | D18: 84.25 | E18: 61.29 | F18: 1.06 | G18: 0 | H18: 608 | I18: 215 | J18: 2110 | K18: 780 | L18: 397 | M18: 394 | N18: 0 | O18: 4500 | P18: 0 | Q18: 210 | R18: 5.6 | S18: 65900 | T18: 83000 | U18: 699 | V18: 6690 | W18: 138000 | X18: 1111 | Y18: 406000 | Z18: 1359000 | AA18: 3.2 | AB18: 12000 | AC18: 2790 | AD18: 11.75 | AE18: 15.2 | AF18: 0 | AG18: 0.154 | AH18: 0.082 | AI18: 0.586 | AJ18: 2.1 | AK18: 30
B19: beans, small white | C19: 168 | D19: 84 | E19: 62.25 | F19: 1.18 | G19: 0 | H19: 743 | I19: 207 | J19: 1342 | K19: 729 | L19: 439 | M19: 386 | N19: 0 | O19: 0 | P19: 0 | Q19: 0 | R19: 0 | S19: 0 | T19: 173000 | U19: 635 | V19: 7730 | W19: 183000 | X19: 1278 | Y19: 445000 | Z19: 1542000 | AA19: 12.8 | AB19: 12000 | AC19: 2810 | AD19: 11.71 | AE19: 24.9 | AF19: 0 | AG19: 0.304 | AH19: 0.102 | AI19: 0.507 | AJ19: 0 | AK19: 30
B20: beans, snap, green | C20: 15.5 | D20: 7.75 | E20: 6.97 | F20: 0.22 | G20: 690 | H20: 82 | I20: 104 | J20: 734 | K20: 225 | L20: 141 | M20: 33 | N20: 0 | O20: 12200 | P20: 0 | Q20: 410 | R20: 14.4 | S20: 15300 | T20: 37000 | U20: 69 | V20: 1030 | W20: 25000 | X20: 216 | Y20: 38000 | Z20: 211000 | AA20: 0.6 | AB20: 6000 | AC20: 240 | AD20: 90.32 | AE20: 2.7 | AF20: 0 | AG20: 0.05 | AH20: 0.01 | AI20: 0.113 | AJ20: 3.26 | AK20: 35
B21: beans, snap, yellow | C21: 15.5 | D21: 7.75 | E21: 7.13 | F21: 0.12 | G21: 108 | H21: 84 | I21: 105 | J21: 752 | K21: 94 | L21: 74 | M21: 37 | N21: 0 | O21: 16300 | P21: 0 | Q21: 0 | R21: 0 | S21: 0 | T21: 37000 | U21: 69 | V21: 1040 | W21: 25000 | X21: 214 | Y21: 38000 | Z21: 209000 | AA21: 0.6 | AB21: 6000 | AC21: 240 | AD21: 90.27 | AE21: 3.4 | AF21: 0 | AG21: 0.026 | AH21: 0.005 | AI21: 0.059 | AJ21: 0 | AK21: 35
B22: beans, white | C22: 166.5 | D22: 83.25 | E22: 60.27 | F22: 0.85 | G22: 0 | H22: 437 | I22: 146 | J22: 479 | K22: 732 | L22: 318 | M22: 388 | N22: 0 | O22: 0 | P22: 0 | Q22: 210 | R22: 5.6 | S22: 66200 | T22: 240000 | U22: 984 | V22: 10440 | W22: 190000 | X22: 1796 | Y22: 301000 | Z22: 1795000 | AA22: 12.8 | AB22: 16000 | AC22: 3670 | AD22: 11.32 | AE22: 15.2 | AF22: 0 | AG22: 0.219 | AH22: 0.074 | AI22: 0.364 | AJ22: 2.11 | AK22: 30
B23: beans, white (navy) | C23: 168.5 | D23: 84.25 | E23: 60.75 | F23: 1.5 | G23: 0 | H23: 775 | I23: 164 | J23: 2188 | K23: 744 | L23: 428 | M23: 364 | N23: 0 | O23: 0 | P23: 0 | Q23: 20 | R23: 2.5 | S23: 87400 | T23: 147000 | U23: 834 | V23: 5490 | W23: 175000 | X23: 1418 | Y23: 407000 | Z23: 1185000 | AA23: 11 | AB23: 5000 | AC23: 3650 | AD23: 12.1 | AE23: 24.4 | AF23: 0 | AG23: 0.17 | AH23: 0.245 | AI23: 1.411 | AJ23: 3.88 | AK23: 30
B24: beans, yellow | C24: 172.5 | D24: 86.25 | E24: 60.7 | F24: 2.6 | G24: 6 | H24: 690 | I24: 330 | J24: 2430 | K24: 734 | L24: 442 | M24: 389 | N24: 0 | O24: 0 | P24: 0 | Q24: 0 | R24: 0 | S24: 0 | T24: 166000 | U24: 639 | V24: 7010 | W24: 222000 | X24: 1286 | Y24: 488000 | Z24: 1042000 | AA24: 12.8 | AB24: 12000 | AC24: 2830 | AD24: 11.1 | AE24: 25.1 | AF24: 0 | AG24: 0.671 | AH24: 0.226 | AI24: 1.118 | AJ24: 0 | AK24: 30
B25: beef jerky (snack) | C25: 76.5 | D25: 38.25 | E25: 2.76 | F25: 1.94 | G25: 0 | H25: 65 | I25: 163 | J25: 5164 | K25: 566 | L25: 386 | M25: 10 | N25: 1.59 | O25: 0 | P25: 1 | Q25: 380 | R25: 1.3 | S25: 0 | T25: 8000 | U25: 74 | V25: 2420 | W25: 19000 | X25: 17 | Y25: 181000 | Z25: 235000 | AA25: 32.4 | AB25: 2790000 | AC25: 4930 | AD25: 53.8 | AE25: 0 | AF25: 79 | AG25: 0.95 | AH25: 0.84 | AI25: 0.07 | AJ25: 2.7 | AK25: 0
A26: Protein | B26: beef, lean | C26: 70.5 | D26: 35.25 | E26: 0 | F26: 5.47 | G26: 0 | H26: 66 | I26: 108 | J26: 6683 | K26: 638 | L26: 604 | M26: 13 | N26: 1.06 | O26: 0 | P26: 0 | Q26: 300 | R26: 1.2 | S26: 90100 | T26: 24000 | U26: 73 | V26: 1570 | W26: 23000 | X26: 13 | Y26: 202000 | Z26: 340000 | AA26: 26.4 | AB26: 55000 | AC26: 3940 | AD26: 72.08 | AE26: 0 | AF26: 33 | AG26: 2.058 | AH26: 1.951 | AI26: 0.193 | AJ26: 0 | AK26: 0
B27: beef, sliced | C27: 88 | D27: 44 | E27: 5.71 | F27: 3.84 | G27: 0 | H27: 80 | I27: 190 | J27: 5270 | K27: 590 | L27: 340 | M27: 11 | N27: 2.57 | O27: 0 | P27: 3 | Q27: 0 | R27: 0 | S27: 83400 | T27: 11000 | U27: 34 | V27: 2700 | W27: 19000 | X27: 38 | Y27: 168000 | Z27: 429000 | AA27: 28.2 | AB27: 1439000 | AC27: 3980 | AD27: 58.1 | AE27: 0 | AF27: 41 | AG27: 1.65 | AH27: 1.68 | AI27: 0.2 | AJ27: 0 | AK27: 0
A28: Lunch Vegetable | B28: beets | C28: 21.5 | D28: 10.75 | E28: 9.56 | F28: 0.17 | G28: 33 | H28: 31 | I28: 40 | J28: 334 | K28: 155 | L28: 67 | M28: 109 | N28: 0 | O28: 4900 | P28: 0 | Q28: 40 | R28: 0.2 | S28: 6000 | T28: 16000 | U28: 75 | V28: 800 | W28: 23000 | X28: 329 | Y28: 40000 | Z28: 325000 | AA28: 0.7 | AB28: 78000 | AC28: 350 | AD28: 87.58 | AE28: 2.8 | AF28: 0 | AG28: 0.027 | AH28: 0.032 | AI28: 0.06 | AJ28: 6.76 | AK28: 64
A29: Lunch Protein | B29: blood sausage | C29: 189.5 | D29: 94.75 | E29: 1.29 | F29: 34.5 | G29: 0 | H29: 70 | I29: 130 | J29: 1200 | K29: 600 | L29: 40 | M29: 5 | N29: 1 | O29: 0 | P29: 52 | Q29: 130 | R29: 0 | S29: 72800 | T29: 6000 | U29: 40 | V29: 6400 | W29: 8000 | X29: 10 | Y29: 22000 | Z29: 38000 | AA29: 15.5 | AB29: 680000 | AC29: 1300 | AD29: 47.3 | AE29: 0 | AF29: 120 | AG29: 13.4 | AH29: 15.9 | AI29: 3.46 | AJ29: 1.29 | AK29: 0
A30: Lunch Fruit | B30: blueberries | C30: 28.5 | D30: 14.25 | E30: 14.49 | F30: 0.33 | G30: 54 | H30: 37 | I30: 41 | J30: 418 | K30: 124 | L30: 52 | M30: 6 | N30: 0 | O30: 9700 | P30: 0 | Q30: 570 | R30: 19.3 | S30: 6000 | T30: 6000 | U30: 57 | V30: 280 | W30: 6000 | X30: 336 | Y30: 12000 | Z30: 77000 | AA30: 0.1 | AB30: 1000 | AC30: 160 | AD30: 84.21 | AE30: 2.4 | AF30: 0 | AG30: 0.028 | AH30: 0.047 | AI30: 0.146 | AJ30: 9.96 | AK30: 53
A31: Breakfast Grain | B31: bread, multi-grain | C31: 132.5 | D31: 66.25 | E31: 43.34 | F31: 4.23 | G31: 0 | H31: 279 | I31: 131 | J31: 4042 | K31: 336 | L31: 263 | M31: 75 | N31: 0 | O31: 100 | P31: 0 | Q31: 370 | R31: 1.4 | S31: 26500 | T31: 103000 | U31: 282 | V31: 2500 | W31: 78000 | X31: 2025 | Y31: 228000 | Z31: 230000 | AA31: 32.9 | AB31: 420000 | AC31: 1700 | AD31: 36.94 | AE31: 7.4 | AF31: 0 | AG31: 0.872 | AH31: 0.76 | AI31: 1.872 | AJ31: 6.39 | AK31: 60
B32: bread, oatmeal | C32: 134.5 | D32: 67.25 | E32: 48.5 | F32: 4.4 | G32: 16 | H32: 399 | I32: 240 | J32: 3136 | K32: 341 | L32: 68 | M32: 62 | N32: 0.03 | O32: 0 | P32: 0 | Q32: 480 | R32: 1.5 | S32: 14600 | T32: 66000 | U32: 209 | V32: 2700 | W32: 37000 | X32: 940 | Y32: 126000 | Z32: 142000 | AA32: 24.6 | AB32: 599000 | AC32: 1020 | AD32: 36.7 | AE32: 4 | AF32: 0 | AG32: 0.703 | AH32: 1.578 | AI32: 1.702 | AJ32: 8.14 | AK32: 56
B33: bread, pita, white | C33: 137.5 | D33: 68.75 | E33: 55.7 | F33: 1.2 | G33: 0 | H33: 267 | I33: 97 | J33: 2142 | K33: 397 | L33: 34 | M33: 24 | N33: 0 | O33: 0 | P33: 0 | Q33: 0 | R33: 0 | S33: 0 | T33: 86000 | U33: 168 | V33: 1400 | W33: 26000 | X33: 481 | Y33: 97000 | Z33: 120000 | AA33: 0 | AB33: 536000 | AC33: 840 | AD33: 32.1 | AE33: 2.2 | AF33: 0 | AG33: 0.166 | AH33: 0.105 | AI33: 0.535 | AJ33: 0 | AK33: 65
B34: bread, pita, whole-wheat | C34: 133 | D34: 66.5 | E34: 55 | F34: 2.6 | G34: 0 | H34: 339 | I34: 80 | J34: 2840 | K34: 831 | L34: 265 | M34: 35 | N34: 0 | O34: 0 | P34: 0 | Q34: 610 | R34: 1.4 | S34: 26500 | T34: 15000 | U34: 290 | V34: 3060 | W34: 69000 | X34: 1740 | Y34: 180000 | Z34: 170000 | AA34: 44 | AB34: 532000 | AC34: 1520 | AD34: 30.6 | AE34: 7.4 | AF34: 0 | AG34: 0.41 | AH34: 0.349 | AI34: 1.055 | AJ34: 0.82 | AK34: 56
B35: bread, raisin | C35: 137 | D35: 68.5 | E35: 52.3 | F35: 4.4 | G35: 0 | H35: 177 | I35: 173 | J35: 1495 | K35: 387 | L35: 69 | M35: 34 | N35: 0 | O35: 100 | P35: 0 | Q35: 0 | R35: 0 | S35: 0 | T35: 66000 | U35: 198 | V35: 1830 | W35: 26000 | X35: 501 | Y35: 109000 | Z35: 227000 | AA35: 0 | AB35: 390000 | AC35: 720 | AD35: 33.6 | AE35: 4.3 | AF35: 0 | AG35: 1.081 | AH35: 2.294 | AI35: 0.679 | AJ35: 0 | AK35: 73
B36: bread, rye | C36: 129 | D36: 64.5 | E36: 48.3 | F36: 3.3 | G36: 7 | H36: 434 | I36: 335 | J36: 3805 | K36: 440 | L36: 75 | M36: 110 | N36: 0 | O36: 400 | P36: 0 | Q36: 330 | R36: 1.2 | S36: 14600 | T36: 73000 | U36: 186 | V36: 2830 | W36: 40000 | X36: 824 | Y36: 125000 | Z36: 166000 | AA36: 30.9 | AB36: 660000 | AC36: 1140 | AD36: 37.3 | AE36: 5.8 | AF36: 0 | AG36: 0.626 | AH36: 1.311 | AI36: 0.799 | AJ36: 3.85 | AK36: 58
A37: Lunch Grain | B37: bread, wheat | C37: 133 | D37: 66.5 | E37: 47.51 | F37: 3.64 | G37: 0 | H37: 373 | I37: 311 | J37: 5190 | K37: 820 | L37: 119 | M37: 85 | N37: 0 | O37: 200 | P37: 0 | Q37: 190 | R37: 4.9 | S37: 18700 | T37: 142000 | U37: 159 | V37: 3460 | W37: 48000 | X37: 1123 | Y37: 155000 | Z37: 184000 | AA37: 28.8 | AB37: 521000 | AC37: 1210 | AD37: 35.74 | AE37: 3.6 | AF37: 0 | AG37: 0.803 | AH37: 0.835 | AI37: 1.435 | AJ37: 5.75 | AK37: 72
B38: bread, white | C38: 133 | D38: 66.5 | E38: 50.61 | F38: 3.29 | G38: 0 | H38: 455 | I38: 331 | J38: 4385 | K38: 203 | L38: 84 | M38: 111 | N38: 0 | O38: 0 | P38: 0 | Q38: 220 | R38: 3.1 | S38: 14600 | T38: 151000 | U38: 253 | V38: 3740 | W38: 23000 | X38: 478 | Y38: 99000 | Z38: 100000 | AA38: 17.3 | AB38: 681000 | AC38: 740 | AD38: 36.44 | AE38: 2.4 | AF38: 0 | AG38: 0.717 | AH38: 0.681 | AI38: 1.355 | AJ38: 4.31 | AK38: 74
A39: Dinner Grain | B39: bread, white, toasted | C39: 146.5 | D39: 73.25 | E39: 54.4 | F39: 4 | G39: 0 | H39: 415 | I39: 337 | J39: 3926 | K39: 278 | L39: 63 | M39: 104 | N39: 0.02 | O39: 0 | P39: 0 | Q39: 240 | R39: 3.4 | S39: 16100 | T39: 119000 | U39: 138 | V39: 3330 | W39: 26000 | X39: 421 | Y39: 103000 | Z39: 131000 | AA39: 31 | AB39: 592000 | AC39: 680 | AD39: 30.4 | AE39: 2.5 | AF39: 1 | AG39: 0.578 | AH39: 0.796 | AI39: 2.09 | AJ39: 4.74 | AK39: 62
B40: bread, whole-wheat | C40: 123.5 | D40: 61.75 | E40: 41.29 | F40: 3.35 | G40: 3 | H40: 353 | I40: 216 | J40: 4714 | K40: 686 | L40: 209 | M40: 50 | N40: 0 | O40: 0 | P40: 0 | Q40: 550 | R40: 7.8 | S40: 26500 | T40: 107000 | U40: 377 | V40: 2430 | W40: 82000 | X40: 2135 | Y40: 202000 | Z40: 248000 | AA40: 40.3 | AB40: 472000 | AC40: 1800 | AD40: 38.58 | AE40: 6.8 | AF40: 0 | AG40: 0.747 | AH40: 1.597 | AI40: 0.6 | AJ40: 5.57 | AK40: 71
B41: Brinta classic (whole grain wheat flour) | C41: 162.5 | D41: 81.25 | E41: 65 | F41: 2.1 | G41: 9 | H41: 447 | I41: 215 | J41: 6365 | K41: 1008 | L41: 341 | M41: 44 | N41: 0 | O41: 0 | P41: 0 | Q41: 820 | R41: 1.9 | S41: 31200 | T41: 34000 | U41: 382 | V41: 3880 | W41: 138000 | X41: 3799 | Y41: 346000 | Z41: 405000 | AA41: 70.7 | AB41: 200000 | AC41: 2930 | AD41: 10.27 | AE41: 10.5 | AF41: 0 | AG41: 0.5 | AH41: 0.4 | AI41: 1.2 | AJ41: 4 | AK41: 50
A42: Dinner Vegetable | B42: broccoli | C42: 17 | D42: 8.5 | E42: 6.64 | F42: 0.37 | G42: 623 | H42: 71 | I42: 117 | J42: 639 | K42: 573 | L42: 175 | M42: 63 | N42: 0 | O42: 89200 | P42: 0 | Q42: 780 | R42: 101.6 | S42: 18700 | T42: 47000 | U42: 49 | V42: 730 | W42: 21000 | X42: 210 | Y42: 66000 | Z42: 316000 | AA42: 2.5 | AB42: 33000 | AC42: 410 | AD42: 89.3 | AE42: 2.6 | AF42: 0 | AG42: 0.039 | AH42: 0.011 | AI42: 0.038 | AJ42: 1.7 | AK42: 15
A43: Sweet | B43: brownies | C43: 202.5 | D43: 101.25 | E43: 63.9 | F43: 16.3 | G43: 69 | H43: 255 | I43: 210 | J43: 1721 | K43: 547 | L43: 35 | M43: 47 | N43: 0.07 | O43: 0 | P43: 0 | Q43: 150 | R43: 6.5 | S43: 10000 | T43: 29000 | U43: 224 | V43: 2250 | W43: 31000 | X43: 128 | Y43: 101000 | Z43: 149000 | AA43: 6.3 | AB43: 312000 | AC43: 720 | AD43: 13.6 | AE43: 2.1 | AF43: 17 | AG43: 4.235 | AH43: 8.965 | AI43: 2.259 | AJ43: 36.61 | AK43: 43
A44: Lunch Vegetable | B44: brussels sprouts | C44: 21.5 | D44: 10.75 | E44: 8.95 | F44: 0.3 | G44: 754 | H44: 139 | I44: 90 | J44: 745 | K44: 309 | L44: 219 | M44: 61 | N44: 0 | O44: 85000 | P44: 0 | Q44: 880 | R44: 177 | S44: 19100 | T44: 42000 | U44: 70 | V44: 1400 | W44: 23000 | X44: 337 | Y44: 69000 | Z44: 389000 | AA44: 1.6 | AB44: 25000 | AC44: 420 | AD44: 86 | AE44: 3.8 | AF44: 0 | AG44: 0.062 | AH44: 0.023 | AI44: 0.153 | AJ44: 2.2 | AK44: 15
B45: buckwheat | C45: 171.5 | D45: 85.75 | E45: 71.5 | F45: 3.4 | G45: 0 | H45: 101 | I45: 425 | J45: 7020 | K45: 1233 | L45: 210 | M45: 30 | N45: 0 | O45: 0 | P45: 0 | Q45: 0 | R45: 0 | S45: 0 | T45: 18000 | U45: 1100 | V45: 2200 | W45: 231000 | X45: 1300 | Y45: 347000 | Z45: 460000 | AA45: 8.3 | AB45: 1000 | AC45: 2400 | AD45: 9.75 | AE45: 10 | AF45: 0 | AG45: 0.741 | AH45: 1.04 | AI45: 1.039 | AJ45: 0 | AK45: 53
B46: buckwheat flour | C46: 167.5 | D46: 83.75 | E46: 70.59 | F46: 3.1 | G46: 0 | H46: 417 | I46: 190 | J46: 6150 | K46: 440 | L46: 582 | M46: 54 | N46: 0 | O46: 0 | P46: 0 | Q46: 320 | R46: 7 | S46: 54200 | T46: 41000 | U46: 515 | V46: 4060 | W46: 251000 | X46: 2030 | Y46: 337000 | Z46: 577000 | AA46: 5.7 | AB46: 11000 | AC46: 3120 | AD46: 11.15 | AE46: 10 | AF46: 0 | AG46: 0.677 | AH46: 0.949 | AI46: 0.949 | AJ46: 2.6 | AK46: 55
A47: Dinner Vegetable | B47: cabbage | C47: 12.5 | D47: 6.25 | E47: 5.8 | F47: 0.1 | G47: 98 | H47: 61 | I47: 40 | J47: 234 | K47: 212 | L47: 124 | M47: 43 | N47: 0 | O47: 36600 | P47: 0 | Q47: 150 | R47: 76 | S47: 10700 | T47: 40000 | U47: 19 | V47: 470 | W47: 12000 | X47: 160 | Y47: 26000 | Z47: 170000 | AA47: 0.3 | AB47: 18000 | AC47: 180 | AD47: 92.18 | AE47: 2.5 | AF47: 0 | AG47: 0.034 | AH47: 0.017 | AI47: 0.017 | AJ47: 3.2 | AK47: 15
B48: cabbage, red | C48: 15.5 | D48: 7.75 | E48: 7.37 | F48: 0.16 | G48: 1116 | H48: 64 | I48: 69 | J48: 418 | K48: 147 | L48: 209 | M48: 18 | N48: 0 | O48: 57000 | P48: 0 | Q48: 110 | R48: 38.2 | S48: 17100 | T48: 45000 | U48: 17 | V48: 800 | W48: 16000 | X48: 243 | Y48: 30000 | Z48: 243000 | AA48: 0.6 | AB48: 27000 | AC48: 220 | AD48: 90.39 | AE48: 2.1 | AF48: 0 | AG48: 0.021 | AH48: 0.012 | AI48: 0.08 | AJ48: 3.83 | AK48: 15
B49: cabbage, savoy | C49: 13.5 | D49: 6.75 | E49: 6.1 | F49: 0.1 | G49: 1000 | H49: 70 | I49: 30 | J49: 300 | K49: 187 | L49: 190 | M49: 80 | N49: 0 | O49: 31000 | P49: 0 | Q49: 170 | R49: 68.8 | S49: 12300 | T49: 35000 | U49: 62 | V49: 400 | W49: 28000 | X49: 180 | Y49: 42000 | Z49: 230000 | AA49: 0.9 | AB49: 28000 | AC49: 270 | AD49: 91 | AE49: 3.1 | AF49: 0 | AG49: 0.013 | AH49: 0.007 | AI49: 0.049 | AJ49: 2.27 | AK49: 15
B50: canola oil | C50: 442 | D50: 221 | E50: 0 | F50: 100 | G50: 0 | H50: 0 | I50: 0 | J50: 0 | K50: 0 | L50: 0 | M50: 0 | N50: 0 | O50: 0 | P50: 0 | Q50: 17460 | R50: 71.3 | S50: 200 | T50: 0 | U50: 0 | V50: 0 | W50: 0 | X50: 0 | Y50: 0 | Z50: 0 | AA50: 0 | AB50: 0 | AC50: 0 | AD50: 0 | AE50: 0 | AF50: 0 | AG50: 7.365 | AH50: 63.276 | AI50: 28.142 | AJ50: 0 | AK50: 0
A51: Lunch Fruit | B51: cantaloupe, melon | C51: 17 | D51: 8.5 | E51: 8.16 | F51: 0.19 | G51: 3382 | H51: 41 | I51: 19 | J51: 734 | K51: 105 | L51: 72 | M51: 21 | N51: 0 | O51: 36700 | P51: 0 | Q51: 50 | R51: 2.5 | S51: 7600 | T51: 9000 | U51: 41 | V51: 210 | W51: 12000 | X51: 41 | Y51: 15000 | Z51: 267000 | AA51: 0.4 | AB51: 16000 | AC51: 180 | AD51: 90.15 | AE51: 0.9 | AF51: 0 | AG51: 0.051 | AH51: 0.003 | AI51: 0.081 | AJ51: 7.86 | AK51: 67
A52: Beverage | B52: carrot juice | C52: 20 | D52: 10 | E52: 9.28 | F52: 0.15 | G52: 19124 | H52: 92 | I52: 55 | J52: 386 | K52: 228 | L52: 217 | M52: 4 | N52: 0 | O52: 8500 | P52: 0 | Q52: 1160 | R52: 15.5 | S52: 9900 | T52: 24000 | U52: 46 | V52: 460 | W52: 14000 | X52: 130 | Y52: 42000 | Z52: 292000 | AA52: 0.6 | AB52: 29000 | AC52: 180 | AD52: 88.87 | AE52: 0.8 | AF52: 0 | AG52: 0.027 | AH52: 0.007 | AI52: 0.071 | AJ52: 3.91 | AK52: 45
A53: Lunch Vegetable | B53: carrots | C53: 20.5 | D53: 10.25 | E53: 9.58 | F53: 0.24 | G53: 16706 | H53: 66 | I53: 58 | J53: 983 | K53: 273 | L53: 138 | M53: 19 | N53: 0 | O53: 5900 | P53: 0 | Q53: 660 | R53: 13.2 | S53: 8800 | T53: 33000 | U53: 45 | V53: 300 | W53: 12000 | X53: 143 | Y53: 35000 | Z53: 320000 | AA53: 0.1 | AB53: 69000 | AC53: 240 | AD53: 88.29 | AE53: 2.8 | AF53: 0 | AG53: 0.037 | AH53: 0.014 | AI53: 0.117 | AJ53: 4.74 | AK53: 45
B54: casein/milk, concentrate | C54: 187.5 | D54: 93.75 | E54: 4.7 | F54: 2.7 | G54: 0 | H54: 0 | I54: 0 | J54: 0 | K54: 0 | L54: 0 | M54: 0 | N54: 0 | O54: 0 | P54: 0 | Q54: 0 | R54: 0 | S54: 0 | T54: 2070000 | U54: 0 | V54: 0 | W54: 0 | X54: 0 | Y54: 0 | Z54: 370000 | AA54: 0 | AB54: 110000 | AC54: 0 | AD54: 0 | AE54: 0 | AF54: 0 | AG54: 1.27575 | AH54: 0.906525 | AI54: 0.127575 | AJ54: 4.7 | AK54: 10
B55: casein/milk, isolate | C55: 187 | D55: 93.5 | E55: 1.7 | F55: 1.7 | G55: 0 | H55: 0 | I55: 0 | J55: 0 | K55: 0 | L55: 0 | M55: 0 | N55: 0 | O55: 0 | P55: 0 | Q55: 0 | R55: 0 | S55: 0 | T55: 2250000 | U55: 0 | V55: 0 | W55: 0 | X55: 0 | Y55: 0 | Z55: 0 | AA55: 0 | AB55: 0 | AC55: 0 | AD55: 0 | AE55: 0 | AF55: 0 | AG55: 0.80325 | AH55: 0.570775 | AI55: 0.080325 | AJ55: 1.7 | AK55: 0
A56: Nut | B56: cashew nuts | C56: 276.5 | D56: 138.25 | E56: 30.19 | F56: 43.85 | G56: 0 | H56: 423 | I56: 58 | J56: 1062 | K56: 864 | L56: 417 | M56: 25 | N56: 0 | O56: 500 | P56: 0 | Q56: 900 | R56: 34.1 | S56: 0 | T56: 37000 | U56: 2195 | V56: 6680 | W56: 292000 | X56: 1655 | Y56: 593000 | Z56: 660000 | AA56: 19.9 | AB56: 12000 | AC56: 5780 | AD56: 5.2 | AE56: 3.3 | AF56: 0 | AG56: 7.783 | AH56: 23.797 | AI56: 7.845 | AJ56: 5.91 | AK56: 25
A57: Dinner Vegetable | B57: cauliflower | C57: 12.5 | D57: 6.25 | E57: 4.97 | F57: 0.28 | G57: 0 | H57: 50 | I57: 60 | J57: 507 | K57: 667 | L57: 184 | M57: 57 | N57: 0 | O57: 48200 | P57: 0 | Q57: 80 | R57: 15.5 | S57: 44300 | T57: 22000 | U57: 39 | V57: 420 | W57: 15000 | X57: 155 | Y57: 44000 | Z57: 299000 | AA57: 0.6 | AB57: 30000 | AC57: 270 | AD57: 92.07 | AE57: 2 | AF57: 0 | AG57: 0.064 | AH57: 0.017 | AI57: 0.015 | AJ57: 1.91 | AK57: 15
A58: Cheese | B58: cheese, gouda | C58: 178 | D58: 89 | E58: 2.22 | F58: 27.44 | G58: 563 | H58: 30 | I58: 334 | J58: 63 | K58: 340 | L58: 80 | M58: 21 | N58: 1.54 | O58: 0 | P58: 20 | Q58: 240 | R58: 2.3 | S58: 15400 | T58: 700000 | U58: 36 | V58: 240 | W58: 29000 | X58: 11 | Y58: 546000 | Z58: 121000 | AA58: 14.5 | AB58: 819000 | AC58: 3900 | AD58: 41.46 | AE58: 0 | AF58: 114 | AG58: 17.614 | AH58: 7.747 | AI58: 0.657 | AJ58: 2.22 | AK58: 0
A59: Lunch Fruit | B59: cherries, sour | C59: 25 | D59: 12.5 | E59: 12.18 | F59: 0.3 | G59: 1283 | H59: 30 | I59: 40 | J59: 400 | K59: 143 | L59: 44 | M59: 8 | N59: 0 | O59: 10000 | P59: 0 | Q59: 70 | R59: 2.1 | S59: 6100 | T59: 16000 | U59: 104 | V59: 320 | W59: 9000 | X59: 112 | Y59: 15000 | Z59: 173000 | AA59: 0 | AB59: 3000 | AC59: 100 | AD59: 86.13 | AE59: 1.6 | AF59: 0 | AG59: 0.068 | AH59: 0.082 | AI59: 0.09 | AJ59: 8.49 | AK59: 22
B60: cherries, sour, canned | C60: 37.5 | D60: 18.75 | E60: 19.3 | F60: 0.1 | G60: 726 | H60: 16 | I60: 39 | J60: 170 | K60: 105 | L60: 44 | M60: 8 | N60: 0 | O60: 2000 | P60: 0 | Q60: 0 | R60: 0 | S60: 0 | T60: 10000 | U60: 68 | V60: 1320 | W60: 6000 | X60: 73 | Y60: 10000 | Z60: 95000 | AA60: 0 | AB60: 7000 | AC60: 70 | AD60: 79.62 | AE60: 0.8 | AF60: 0 | AG60: 0.022 | AH60: 0.026 | AI60: 0.029 | AJ60: 0 | AK60: 41
B61: cherries, sweet | C61: 31.5 | D61: 15.75 | E61: 16.01 | F61: 0.2 | G61: 64 | H61: 27 | I61: 33 | J61: 154 | K61: 199 | L61: 49 | M61: 4 | N61: 0 | O61: 7000 | P61: 0 | Q61: 70 | R61: 2.1 | S61: 6100 | T61: 13000 | U61: 60 | V61: 360 | W61: 11000 | X61: 70 | Y61: 21000 | Z61: 222000 | AA61: 0 | AB61: 0 | AC61: 70 | AD61: 82.25 | AE61: 2.1 | AF61: 0 | AG61: 0.038 | AH61: 0.047 | AI61: 0.052 | AJ61: 12.82 | AK61: 63
A62: Nut | B62: chestnut | C62: 98 | D62: 49 | E62: 44.17 | F62: 1.25 | G62: 26 | H62: 144 | I62: 16 | J62: 1102 | K62: 476 | L62: 352 | M62: 58 | N62: 0 | O62: 40200 | P62: 0 | Q62: 0 | R62: 0 | S62: 0 | T62: 19000 | U62: 418 | V62: 940 | W62: 30000 | X62: 336 | Y62: 38000 | Z62: 484000 | AA62: 0 | AB62: 2000 | AC62: 490 | AD62: 52 | AE62: 0 | AF62: 0 | AG62: 0.235 | AH62: 0.43 | AI62: 0.493 | AJ62: 0 | AK62: 60
A63: Protein | B63: chicken, breast meat | C63: 57 | D63: 28.5 | E63: 0 | F63: 2.59 | G63: 30 | H63: 64 | I63: 100 | J63: 10430 | K63: 1425 | L63: 749 | M63: 4 | N63: 0.2 | O63: 1200 | P63: 5 | Q63: 190 | R63: 0.2 | S63: 73400 | T63: 5000 | U63: 27 | V63: 370 | W63: 26000 | X63: 15 | Y63: 210000 | Z63: 370000 | AA63: 32 | AB63: 116000 | AC63: 580 | AD63: 75.79 | AE63: 0 | AF63: 64 | AG63: 0.567 | AH63: 0.763 | AI63: 0.399 | AJ63: 0 | AK63: 0
B64: chicken, breast, sliced | C64: 39.5 | D64: 19.75 | E64: 2.17 | F64: 0.39 | G64: 0 | H64: 18 | I64: 29 | J64: 3428 | K64: 241 | L64: 150 | M64: 1 | N64: 0.09 | O64: 0 | P64: 0 | Q64: 0 | R64: 0 | S64: 0 | T64: 6000 | U64: 34 | V64: 320 | W64: 9000 | X64: 43 | Y64: 60000 | Z64: 67000 | AA64: 7.6 | AB64: 1087000 | AC64: 300 | AD64: 76.71 | AE64: 0 | AF64: 36 | AG64: 0.13 | AH64: 0.121 | AI64: 0.073 | AJ64: 0.1 | AK64: 0
B65: chicken, leg meat | C65: 60 | D65: 30 | E65: 0 | F65: 3.81 | G65: 61 | H65: 79 | I65: 193 | J65: 6067 | K65: 1178 | L65: 330 | M65: 10 | N65: 0.36 | O65: 0 | P65: 5 | Q65: 320 | R65: 2.9 | S65: 61800 | T65: 11000 | U65: 64 | V65: 1020 | W65: 23000 | X65: 21 | Y65: 167000 | Z65: 229000 | AA65: 13.5 | AB65: 86000 | AC65: 2060 | AD65: 76.13 | AE65: 0 | AF65: 80 | AG65: 0.98 | AH65: 1.18 | AI65: 0.95 | AJ65: 0 | AK65: 0
B66: chicken, liver | C66: 59.5 | D66: 29.75 | E66: 0.73 | F66: 4.83 | G66: 11078 | H66: 305 | I66: 1778 | J66: 9728 | K66: 6233 | L66: 853 | M66: 588 | N66: 16.58 | O66: 17900 | P66: 0 | Q66: 700 | R66: 0 | S66: 194400 | T66: 8000 | U66: 492 | V66: 8990 | W66: 19000 | X66: 255 | Y66: 297000 | Z66: 230000 | AA66: 54.6 | AB66: 71000 | AC66: 2670 | AD66: 76.46 | AE66: 0 | AF66: 345 | AG66: 1.563 | AH66: 1.249 | AI66: 1.306 | AJ66: 0 | AK66: 0
A67: Protein | B67: chickpeas | C67: 182 | D67: 91 | E67: 60.65 | F67: 6.04 | G67: 67 | H67: 477 | I67: 212 | J67: 1541 | K67: 1588 | L67: 535 | M67: 557 | N67: 0 | O67: 4000 | P67: 0 | Q67: 820 | R67: 9 | S67: 95200 | T67: 105000 | U67: 847 | V67: 6240 | W67: 115000 | X67: 2204 | Y67: 366000 | Z67: 875000 | AA67: 8.2 | AB67: 24000 | AC67: 3430 | AD67: 11.53 | AE67: 17.4 | AF67: 0 | AG67: 0.626 | AH67: 1.358 | AI67: 2.694 | AJ67: 10.7 | AK67: 35
A68: Dinner Vegetable | B68: chicory (witlof) | C68: 8.5 | D68: =C68/2 -> 4.25 | E68: 4 | F68: 0.1 | G68: 29 | H68: 62 | I68: 27 | J68: 160 | K68: 145 | L68: 42 | M68: 37 | N68: 0 | O68: 2800 | P68: 0 | Q68: 0 | R68: 0 | S68: 0 | T68: 19000 | U68: 51 | V68: 240 | W68: 10000 | X68: 100 | Y68: 26000 | Z68: 211000 | AA68: 0.2 | AB68: 2000 | AC68: 160 | AD68: 94.52 | AE68: 3.1 | AF68: 0 | AG68: 0.024 | AH68: 0.002 | AI68: 0.044 | AJ68: 0 | AK68: 15
B69: chocolate, dark, 45-59% cacao | C69: 273 | D69: 136.5 | E69: 61.17 | F69: 31.28 | G69: 50 | H69: 25 | I69: 50 | J69: 725 | K69: 297 | L69: 42 | M69: 0 | N69: 0.23 | O69: 0 | P69: 0 | Q69: 540 | R69: 8.1 | S69: 0 | T69: 56000 | U69: 1028 | V69: 8020 | W69: 146000 | X69: 1419 | Y69: 206000 | Z69: 559000 | AA69: 3 | AB69: 24000 | AC69: 2010 | AD69: 0.97 | AE69: 7 | AF69: 8 | AG69: 18.519 | AH69: 9.54 | AI69: 1.092 | AJ69: 47.9 | AK69: 30
B70: chocolate, dark, 60-69% cacao | C70: 289.5 | D70: 144.75 | E70: 52.42 | F70: 38.31 | G70: 50 | H70: 32 | I70: 49 | J70: 838 | K70: 300 | L70: 34 | M70: 0 | N70: 0.18 | O70: 0 | P70: 0 | Q70: 590 | R70: 7.2 | S70: 0 | T70: 62000 | U70: 1248 | V70: 6320 | W70: 176000 | X70: 1325 | Y70: 260000 | Z70: 567000 | AA70: 8.4 | AB70: 10000 | AC70: 2650 | AD70: 1.25 | AE70: 8 | AF70: 6 | AG70: 22.031 | AH70: 11.522 | AI70: 1.221 | AJ70: 36.71 | AK70: 30
B71: chocolate, dark, 70-85% cacao | C71: 299 | D71: 149.5 | E71: 45.9 | F71: 42.63 | G71: 39 | H71: 34 | I71: 78 | J71: 1054 | K71: 418 | L71: 38 | M71: 0 | N71: 0.28 | O71: 0 | P71: 0 | Q71: 590 | R71: 7.3 | S71: 0 | T71: 73000 | U71: 1766 | V71: 11900 | W71: 228000 | X71: 1948 | Y71: 308000 | Z71: 715000 | AA71: 6.8 | AB71: 20000 | AC71: 3310 | AD71: 1.37 | AE71: 10.9 | AF71: 3 | AG71: 24.489 | AH71: 12.781 | AI71: 1.257 | AJ71: 23.99 | AK71: 30
A72: Sweet | B72: chocolate, milk | C72: 267.5 | D72: 133.75 | E72: 59.4 | F72: 29.66 | G72: 195 | H72: 112 | I72: 298 | J72: 386 | K72: 472 | L72: 36 | M72: 12 | N72: 0.75 | O72: 0 | P72: 0 | Q72: 510 | R72: 5.7 | S72: 46100 | T72: 189000 | U72: 491 | V72: 2350 | W72: 63000 | X72: 471 | Y72: 208000 | Z72: 372000 | AA72: 4.5 | AB72: 79000 | AC72: 2300 | AD72: 1.5 | AE72: 3.4 | AF72: 23 | AG72: 18.509 | AH72: 7.186 | AI72: 1.376 | AJ72: 51.5 | AK72: 40
B73: chocolate, white | C73: 269.5 | D73: 134.75 | E73: 59.24 | F73: 32.09 | G73: 30 | H73: 63 | I73: 282 | J73: 745 | K73: 608 | L73: 56 | M73: 7 | N73: 0.56 | O73: 500 | P73: 0 | Q73: 960 | R73: 9.1 | S73: 29500 | T73: 199000 | U73: 60 | V73: 240 | W73: 12000 | X73: 8 | Y73: 176000 | Z73: 286000 | AA73: 4.5 | AB73: 90000 | AC73: 740 | AD73: 1.3 | AE73: 0.2 | AF73: 21 | AG73: 19.412 | AH73: 9.097 | AI73: 1.013 | AJ73: 59 | AK73: 44
A74: Sweet | B74: chocolate-flavored hazelnut spread | C74: 270.5 | D74: 135.25 | E74: 62.16 | F74: 29.73 | G74: 3 | H74: 85 | I74: 170 | J74: 427 | K74: 357 | L74: 82 | M74: 14 | N74: 0.27 | O74: 0 | P74: 0 | Q74: 4960 | R74: 1.9 | S74: 17600 | T74: 108000 | U74: 469 | V74: 4380 | W74: 64000 | X74: 868 | Y74: 152000 | Z74: 407000 | AA74: 3.6 | AB74: 41000 | AC74: 1060 | AD74: 1.07 | AE74: 5.4 | AF74: 0 | AG74: 28.423 | AH74: 0 | AI74: 0 | AJ74: 54.05 | AK74: 30
B75: cocoa powder | C75: 114 | D75: 57 | E75: 57.9 | F75: 13.7 | G75: 0 | H75: 78 | I75: 241 | J75: 2185 | K75: 254 | L75: 118 | M75: 32 | N75: 0 | O75: 0 | P75: 0 | Q75: 100 | R75: 2.5 | S75: 12000 | T75: 128000 | U75: 3788 | V75: 13860 | W75: 499000 | X75: 3837 | Y75: 734000 | Z75: 1524000 | AA75: 14.3 | AB75: 21000 | AC75: 6810 | AD75: 3 | AE75: 33.2 | AF75: 0 | AG75: 8.07 | AH75: 4.57 | AI75: 0.44 | AJ75: 1.75 | AK75: 20
A76: Dinner Fruit | B76: coconut | C76: 177 | D76: 88.5 | E76: 15.23 | F76: 33.49 | G76: 0 | H76: 66 | I76: 20 | J76: 540 | K76: 300 | L76: 54 | M76: 26 | N76: 0 | O76: 3300 | P76: 0 | Q76: 240 | R76: 0.2 | S76: 12100 | T76: 14000 | U76: 435 | V76: 2430 | W76: 32000 | X76: 1500 | Y76: 113000 | Z76: 356000 | AA76: 10.1 | AB76: 20000 | AC76: 1100 | AD76: 46.99 | AE76: 9 | AF76: 0 | AG76: 29.698 | AH76: 1.425 | AI76: 0.366 | AJ76: 6.23 | AK76: 45
A77: Protein | B77: cod | C77: 41 | D77: 20.5 | E77: 0 | F77: 0.67 | G77: 40 | H77: 76 | I77: 65 | J77: 2063 | K77: 153 | L77: 245 | M77: 7 | N77: 0.91 | O77: 1000 | P77: 36 | Q77: 640 | R77: 0.1 | S77: 65200 | T77: 16000 | U77: 28 | V77: 380 | W77: 32000 | X77: 15 | Y77: 203000 | Z77: 413000 | AA77: 33.1 | AB77: 54000 | AC77: 450 | AD77: 81.22 | AE77: 0 | AF77: 43 | AG77: 0.131 | AH77: 0.094 | AI77: 0.231 | AJ77: 0 | AK77: 0
A78: Dinner Vegetable | B78: collard | C78: 15 | D78: 7.5 | E78: 5.69 | F78: 0.42 | G78: 6668 | H78: 54 | I78: 130 | J78: 742 | K78: 267 | L78: 165 | M78: 166 | N78: 0 | O78: 35300 | P78: 0 | Q78: 2260 | R78: 510.8 | S78: 23200 | T78: 145000 | U78: 39 | V78: 190 | W78: 9000 | X78: 276 | Y78: 10000 | Z78: 169000 | AA78: 1.3 | AB78: 20000 | AC78: 130 | AD78: 90.55 | AE78: 3.6 | AF78: 0 | AG78: 0.055 | AH78: 0.03 | AI78: 0.201 | AJ78: 0.46 | AK78: 15
B79: corn (maize), dried | C79: 182.5 | D79: 91.25 | E79: 74.26 | F79: 4.74 | G79: 214 | H79: 385 | I79: 201 | J79: 3627 | K79: 424 | L79: 622 | M79: 19 | N79: 0 | O79: 0 | P79: 0 | Q79: 490 | R79: 0.3 | S79: 0 | T79: 7000 | U79: 314 | V79: 2710 | W79: 127000 | X79: 485 | Y79: 210000 | Z79: 287000 | AA79: 15.5 | AB79: 35000 | AC79: 2210 | AD79: 10.37 | AE79: 7.3 | AF79: 0 | AG79: 0.667 | AH79: 1.251 | AI79: 2.163 | AJ79: 0.64 | AK79: 60
A80: Dinner Starch | B80: corn (maize), raw | C80: 43 | D80: 21.5 | E80: 18.7 | F80: 1.35 | G80: 187 | H80: 155 | I80: 55 | J80: 1770 | K80: 717 | L80: 93 | M80: 42 | N80: 0 | O80: 6800 | P80: 0 | Q80: 70 | R80: 0.3 | S80: 23000 | T80: 2000 | U80: 54 | V80: 520 | W80: 37000 | X80: 163 | Y80: 89000 | Z80: 270000 | AA80: 0.6 | AB80: 15000 | AC80: 460 | AD80: 76.05 | AE80: 2 | AF80: 0 | AG80: 0.325 | AH80: 0.432 | AI80: 0.487 | AJ80: 6.26 | AK80: 54
B81: corn oil (maize oil) | C81: 442 | D81: 221 | E81: 0 | F81: 100 | G81: 0 | H81: 0 | I81: 0 | J81: 0 | K81: 0 | L81: 0 | M81: 0 | N81: 0 | O81: 0 | P81: 0 | Q81: 14300 | R81: 1.9 | S81: 200 | T81: 0 | U81: 0 | V81: 0 | W81: 0 | X81: 0 | Y81: 0 | Z81: 0 | AA81: 0 | AB81: 0 | AC81: 0 | AD81: 0 | AE81: 0 | AF81: 0 | AG81: 12.948 | AH81: 27.576 | AI81: 54.677 | AJ81: 0 | AK81: 0
B82: cottage cheese, 1% fat | C82: 36 | D82: 18 | E82: 2.72 | F82: 1.02 | G82: 41 | H82: 21 | I82: 165 | J82: 128 | K82: 215 | L82: 68 | M82: 12 | N82: 0.63 | O82: 0 | P82: 0 | Q82: 10 | R82: 0.1 | S82: 17500 | T82: 61000 | U82: 28 | V82: 140 | W82: 5000 | X82: 3 | Y82: 134000 | Z82: 86000 | AA82: 9 | AB82: 406000 | AC82: 380 | AD82: 82.48 | AE82: 0 | AF82: 4 | AG82: 0.645 | AH82: 0.291 | AI82: 0.031 | AJ82: 2.72 | AK82: 30
B83: cottage cheese, 2% fat | C83: 43 | D83: 21.5 | E83: 3.66 | F83: 2.45 | G83: 74 | H83: 41 | I83: 198 | J83: 108 | K83: 253 | L83: 22 | M83: 10 | N83: 0.45 | O83: 0 | P83: 0 | Q83: 40 | R83: 0 | S83: 16300 | T83: 91000 | U83: 30 | V83: 150 | W83: 7000 | X83: 7 | Y83: 163000 | Z83: 84000 | AA83: 9.9 | AB83: 330000 | AC83: 410 | AD83: 80.69 | AE83: 0 | AF83: 10 | AG83: 0.979 | AH83: 0.443 | AI83: 0.07 | AJ83: 3.67 | AK83: 30
B84: cottage cheese, fat | C84: 49 | D84: 24.5 | E84: 3.38 | F84: 4.3 | G84: 140 | H84: 27 | I84: 163 | J84: 99 | K84: 557 | L84: 46 | M84: 12 | N84: 0.43 | O84: 0 | P84: 3 | Q84: 80 | R84: 0 | S84: 18400 | T84: 83000 | U84: 29 | V84: 70 | W84: 8000 | X84: 2 | Y84: 159000 | Z84: 104000 | AA84: 9.7 | AB84: 364000 | AC84: 400 | AD84: 79.79 | AE84: 0 | AF84: 17 | AG84: 1.718 | AH84: 0.778 | AI84: 0.123 | AJ84: 2.67 | AK84: 30
A85: Breakfast Protein | B85: cottage cheese, nonfat | C85: 36 | D85: 18 | E85: 6.66 | F85: 0.29 | G85: 8 | H85: 23 | I85: 226 | J85: 144 | K85: 446 | L85: 16 | M85: 9 | N85: 0.46 | O85: 0 | P85: 0 | Q85: 10 | R85: 0 | S85: 17900 | T85: 86000 | U85: 30 | V85: 150 | W85: 11000 | X85: 22 | Y85: 190000 | Z85: 137000 | AA85: 9.4 | AB85: 330000 | AC85: 470 | AD85: 81.01 | AE85: 0 | AF85: 7 | AG85: 0.169 | AH85: 0.079 | AI85: 0.003 | AJ85: 1.85 | AK85: 30
B86: couscous | C86: 188 | D86: 94 | E86: 77.43 | F86: 0.64 | G86: 0 | H86: 163 | I86: 78 | J86: 3490 | K86: 1243 | L86: 110 | M86: 20 | N86: 0 | O86: 0 | P86: 0 | Q86: 0 | R86: 0 | S86: 0 | T86: 24000 | U86: 247 | V86: 1080 | W86: 44000 | X86: 780 | Y86: 170000 | Z86: 166000 | AA86: 0 | AB86: 10000 | AC86: 830 | AD86: 8.56 | AE86: 5 | AF86: 0 | AG86: 0.117 | AH86: 0.089 | AI86: 0.252 | AJ86: 0 | AK86: 62
A87: Lunch Protein | B87: crab | C87: 43.5 | D87: 21.75 | E87: 0.04 | F87: 1.08 | G87: 5 | H87: 80 | I87: 40 | J87: 2700 | K87: 350 | L87: 150 | M87: 44 | N87: 9 | O87: 3000 | P87: 0 | Q87: 0 | R87: 0 | S87: 0 | T87: 89000 | U87: 669 | V87: 740 | W87: 34000 | X87: 150 | Y87: 229000 | Z87: 329000 | AA87: 37.4 | AB87: 293000 | AC87: 3540 | AD87: 79.02 | AE87: 0 | AF87: 78 | AG87: 0.222 | AH87: 0.192 | AI87: 0.387 | AJ87: 0 | AK87: 0
B88: crab, canned | C88: 49.5 | D88: 24.75 | E88: 0 | F88: 1.23 | G88: 7 | H88: 80 | I88: 84 | J88: 1370 | K88: 360 | L88: 150 | M88: 43 | N88: 0.46 | O88: 2700 | P88: 0 | Q88: 1840 | R88: 0.1 | S88: 33600 | T88: 101000 | U88: 760 | V88: 840 | W88: 39000 | X88: 190 | Y88: 260000 | Z88: 374000 | AA88: 31.8 | AB88: 333000 | AC88: 4020 | AD88: 76.16 | AE88: 0 | AF88: 89 | AG88: 0.252 | AH88: 0.218 | AI88: 0.44 | AJ88: 0 | AK88: 0
B89: creatine | C89: 0 | D89: 0 | E89: 0 | F89: 0 | G89: 0 | H89: 0 | I89: 0 | J89: 0 | K89: 0 | L89: 0 | M89: 0 | N89: 0 | O89: 0 | P89: 0 | Q89: 0 | R89: 0 | S89: 0 | T89: 0 | U89: 0 | V89: 0 | W89: 0 | X89: 0 | Y89: 0 | Z89: 0 | AA89: 0 | AB89: 0 | AC89: 0 | AD89: 0 | AE89: 0 | AF89: 0 | AG89: 0 | AH89: 0 | AI89: 0 | AJ89: 0 | AK89: 0
B90: crispbread, fiber (Wasa) | C90: 175.5 | D90: 87.75 | E90: 48 | F90: 6.5 | G90: 0 | H90: 243 | I90: 145 | J90: 1040 | K90: 676 | L90: 210 | M90: 47 | N90: 0 | O90: 0 | P90: 0 | Q90: 810 | R90: 6 | S90: 20200 | T90: 31000 | U90: 255 | V90: 2430 | W90: 78000 | X90: 2475 | Y90: 269000 | Z90: 319000 | AA90: 36.6 | AB90: 500000 | AC90: 2390 | AD90: 6.1 | AE90: 24 | AF90: 0 | AG90: 1.5 | AH90: 0.165 | AI90: 0.557 | AJ90: 2.5 | AK90: 60
B91: crispbread, rye (Euroshopper) | C91: 170 | D91: 85 | E91: 63 | F91: 1.5 | G91: 0 | H91: 243 | I91: 145 | J91: 1040 | K91: 676 | L91: 210 | M91: 47 | N91: 0 | O91: 0 | P91: 0 | Q91: 810 | R91: 6 | S91: 20200 | T91: 31000 | U91: 255 | V91: 2430 | W91: 78000 | X91: 2475 | Y91: 269000 | Z91: 319000 | AA91: 36.6 | AB91: 540000 | AC91: 2390 | AD91: 6.1 | AE91: 16.5 | AF91: 0 | AG91: 0.3 | AH91: 0.165 | AI91: 0.557 | AJ91: 2.5 | AK91: 63
A92: Breakfast Grain | B92: croissants, butter | C92: 203 | D92: 101.5 | E92: 45.8 | F92: 21 | G92: 744 | H92: 388 | I92: 241 | J92: 2188 | K92: 861 | L92: 58 | M92: 88 | N92: 0.16 | O92: 200 | P92: 0 | Q92: 840 | R92: 1.8 | S92: 38800 | T92: 37000 | U92: 80 | V92: 2030 | W92: 16000 | X92: 330 | Y92: 105000 | Z92: 118000 | AA92: 22.7 | AB92: 744000 | AC92: 750 | AD92: 23.2 | AE92: 2.6 | AF92: 67 | AG92: 11.659 | AH92: 5.525 | AI92: 1.094 | AJ92: 11.26 | AK92: 67
A93: Lunch Vegetable | B93: cucumber | C93: 6 | D93: 3 | E93: 2.16 | F93: 0.16 | G93: 72 | H93: 31 | I93: 25 | J93: 37 | K93: 240 | L93: 51 | M93: 14 | N93: 0 | O93: 3200 | P93: 0 | Q93: 30 | R93: 7.2 | S93: 5700 | T93: 14000 | U93: 71 | V93: 220 | W93: 12000 | X93: 73 | Y93: 21000 | Z93: 136000 | AA93: 0.1 | AB93: 2000 | AC93: 170 | AD93: 96.73 | AE93: 0.7 | AF93: 0 | AG93: 0.013 | AH93: 0.002 | AI93: 0.003 | AJ93: 1.38 | AK93: 15
A94: Protein | B94: cuttlefish (squid, inkfish) | C94: 39.5 | D94: 19.75 | E94: 0.82 | F94: 0.7 | G94: 375 | H94: 9 | I94: 910 | J94: 1216 | K94: 500 | L94: 150 | M94: 16 | N94: 3 | O94: 5300 | P94: 0 | Q94: 0 | R94: 0 | S94: 0 | T94: 90000 | U94: 587 | V94: 6020 | W94: 30000 | X94: 110 | Y94: 387000 | Z94: 354000 | AA94: 44.8 | AB94: 372000 | AC94: 1730 | AD94: 80.56 | AE94: 0 | AF94: 112 | AG94: 0.118 | AH94: 0.081 | AI94: 0.134 | AJ94: 0 | AK94: 0
A95: Protein | B95: deer, lean | C95: 60 | D95: 30 | E95: 0 | F95: 2.42 | G95: 0 | H95: 220 | I95: 480 | J95: 6370 | K95: 0 | L95: 370 | M95: 4 | N95: 6.31 | O95: 0 | P95: 0 | Q95: 200 | R95: 1.1 | S95: 0 | T95: 5000 | U95: 253 | V95: 3400 | W95: 23000 | X95: 41 | Y95: 202000 | Z95: 318000 | AA95: 9.7 | AB95: 51000 | AC95: 2090 | AD95: 73.57 | AE95: 0 | AF95: 85 | AG95: 0.95 | AH95: 0.67 | AI95: 0.47 | AJ95: 0 | AK95: 0
B96: dextrose (glucose) | C96: 200 | D96: 100 | E96: 100 | F96: 0 | G96: 0 | H96: 0 | I96: 0 | J96: 0 | K96: 0 | L96: 0 | M96: 0 | N96: 0 | O96: 0 | P96: 0 | Q96: 0 | R96: 0 | S96: 0 | T96: 0 | U96: 0 | V96: 0 | W96: 0 | X96: 0 | Y96: 0 | Z96: 0 | AA96: 0 | AB96: 0 | AC96: 0 | AD96: 0 | AE96: 0 | AF96: 0 | AG96: 0 | AH96: 0 | AI96: 0 | AJ96: 100 | AK96: 100
B97: duck, liver, raw | C97: 68 | D97: 34 | E97: 3.53 | F97: 4.64 | G97: 39907 | H97: 562 | I97: 892 | J97: 6500 | K97: 6184 | L97: 760 | M97: 738 | N97: 54 | O97: 4500 | P97: 0 | Q97: 0 | R97: 0 | S97: 0 | T97: 11000 | U97: 5962 | V97: 30530 | W97: 24000 | X97: 258 | Y97: 269000 | Z97: 230000 | AA97: 67 | AB97: 140000 | AC97: 3070 | AD97: 71.78 | AE97: 0 | AF97: 515 | AG97: 1.44 | AH97: 0.71 | AI97: 0.63 | AJ97: 0 | AK97: 0
A98: Protein | B98: duck, meat without skin | C98: 67.5 | D98: 33.75 | E98: 0.94 | F98: 5.95 | G98: 79 | H98: 360 | I98: 450 | J98: 5300 | K98: 1600 | L98: 340 | M98: 25 | N98: 0.4 | O98: 5800 | P98: 3 | Q98: 700 | R98: 2.8 | S98: 53600 | T98: 11000 | U98: 253 | V98: 2400 | W98: 19000 | X98: 19 | Y98: 203000 | Z98: 271000 | AA98: 13.9 | AB98: 74000 | AC98: 1900 | AD98: 73.77 | AE98: 0 | AF98: 77 | AG98: 2.32 | AH98: 1.54 | AI98: 0.75 | AJ98: 0 | AK98: 0
A99: Breakfast Protein | B99: egg white | C99: 24 | D99: 12 | E99: 0.73 | F99: 0.17 | G99: 0 | H99: 4 | I99: 439 | J99: 105 | K99: 190 | L99: 5 | M99: 4 | N99: 0.09 | O99: 0 | P99: 0 | Q99: 0 | R99: 0 | S99: 1100 | T99: 7000 | U99: 23 | V99: 80 | W99: 11000 | X99: 11 | Y99: 15000 | Z99: 163000 | AA99: 20 | AB99: 166000 | AC99: 30 | AD99: 87.57 | AE99: 0 | AF99: 0 | AG99: 0 | AH99: 0 | AI99: 0 | AJ99: 0.71 | AK99: 0
A100: Breakfast Protein | B100: egg yolk | C100: 158.5 | D100: 79.25 | E100: 3.59 | F100: 26.54 | G100: 1442 | H100: 176 | I100: 528 | J100: 24 | K100: 2990 | L100: 350 | M100: 146 | N100: 1.95 | O100: 0 | P100: 133 | Q100: 2580 | R100: 0.7 | S100: 682300 | T100: 129000 | U100: 77 | V100: 2730 | W100: 5000 | X100: 55 | Y100: 390000 | Z100: 109000 | AA100: 56 | AB100: 48000 | AC100: 2300 | AD100: 52.31 | AE100: 0 | AF100: 1234 | AG100: 9.551 | AH100: 11.738 | AI100: 4.204 | AJ100: 0.56 | AK100: 0
B101: eggplant (aubergine) | C101: 12 | D101: 6 | E101: 5.7 | F101: 0.19 | G101: 27 | H101: 39 | I101: 37 | J101: 649 | K101: 281 | L101: 84 | M101: 22 | N101: 0 | O101: 2200 | P101: 0 | Q101: 300 | R101: 3.5 | S101: 6900 | T101: 9000 | U101: 82 | V101: 240 | W101: 14000 | X101: 250 | Y101: 25000 | Z101: 230000 | AA101: 0.3 | AB101: 2000 | AC101: 160 | AD101: 92.41 | AE101: 3.4 | AF101: 0 | AG101: 0.034 | AH101: 0.016 | AI101: 0.076 | AJ101: 2.35 | AK101: 20
A102: Breakfast Protein | B102: eggs | C102: 71.5 | D102: 35.75 | E102: 0.78 | F102: 9.94 | G102: 487 | H102: 69 | I102: 478 | J102: 70 | K102: 1438 | L102: 143 | M102: 47 | N102: 1.29 | O102: 0 | P102: 50 | Q102: 970 | R102: 0.3 | S102: 251100 | T102: 53000 | U102: 102 | V102: 1830 | W102: 12000 | X102: 38 | Y102: 191000 | Z102: 134000 | AA102: 31.7 | AB102: 140000 | AC102: 1110 | AD102: 75.84 | AE102: 0 | AF102: 423 | AG102: 3.1 | AH102: 3.809 | AI102: 1.364 | AJ102: 0.77 | AK102: 0
A103: Dinner Fruit | B103: figs, dried | C103: 124.5 | D103: 62.25 | E103: 63.87 | F103: 0.93 | G103: 10 | H103: 85 | I103: 82 | J103: 619 | K103: 434 | L103: 106 | M103: 9 | N103: 0 | O103: 1200 | P103: 0 | Q103: 350 | R103: 15.6 | S103: 15800 | T103: 162000 | U103: 287 | V103: 2030 | W103: 68000 | X103: 510 | Y103: 67000 | Z103: 680000 | AA103: 0.6 | AB103: 10000 | AC103: 550 | AD103: 30.05 | AE103: 9.8 | AF103: 0 | AG103: 0.144 | AH103: 0.159 | AI103: 0.345 | AJ103: 47.92 | AK103: 61
B104: fish oil, salmon | C104: 451 | D104: 225.5 | E104: 0 | F104: 100 | G104: 0 | H104: 0 | I104: 0 | J104: 0 | K104: 0 | L104: 0 | M104: 0 | N104: 0 | O104: 0 | P104: 0 | Q104: 0 | R104: 0 | S104: 0 | T104: 0 | U104: 0 | V104: 0 | W104: 0 | X104: 0 | Y104: 0 | Z104: 0 | AA104: 0 | AB104: 0 | AC104: 0 | AD104: 0 | AE104: 0 | AF104: 485 | AG104: 19.872 | AH104: 29.037 | AI104: 40.324 | AJ104: 0 | AK104: 0
A105: Lunch Protein | B105: flatfish (sole, flounder) | C105: 45.5 | D105: 22.75 | E105: 0 | F105: 1.19 | G105: 33 | H105: 89 | I105: 76 | J105: 2899 | K105: 503 | L105: 208 | M105: 8 | N105: 1.52 | O105: 1700 | P105: 94 | Q105: 510 | R105: 0.1 | S105: 65000 | T105: 18000 | U105: 32 | V105: 360 | W105: 31000 | X105: 17 | Y105: 184000 | Z105: 361000 | AA105: 32.7 | AB105: 81000 | AC105: 450 | AD105: 79.06 | AE105: 0 | AF105: 48 | AG105: 0.283 | AH105: 0.233 | AI105: 0.329 | AJ105: 0 | AK105: 0
B106: flaxseed oil | C106: 442 | D106: 221 | E106: 0 | F106: 100 | G106: 0 | H106: 0 | I106: 0 | J106: 0 | K106: 0 | L106: 0 | M106: 0 | N106: 0 | O106: 0 | P106: 0 | Q106: 17500 | R106: 0 | S106: 200 | T106: 0 | U106: 0 | V106: 0 | W106: 0 | X106: 0 | Y106: 0 | Z106: 0 | AA106: 0 | AB106: 0 | AC106: 0 | AD106: 0 | AE106: 0 | AF106: 0 | AG106: 9.4 | AH106: 20.2 | AI106: 66 | AJ106: 0 | AK106: 0
A107: Nut | B107: flaxseeds | C107: 267 | D107: 133.5 | E107: 28.88 | F107: 42.16 | G107: 0 | H107: 1644 | I107: 161 | J107: 3080 | K107: 985 | L107: 473 | M107: 87 | N107: 0 | O107: 600 | P107: 0 | Q107: 310 | R107: 4.3 | S107: 78700 | T107: 255000 | U107: 1220 | V107: 5730 | W107: 392000 | X107: 2482 | Y107: 642000 | Z107: 813000 | AA107: 25.4 | AB107: 30000 | AC107: 4340 | AD107: 6.96 | AE107: 27.3 | AF107: 0 | AG107: 3.663 | AH107: 7.527 | AI107: 28.73 | AJ107: 1.55 | AK107: 35
A108: Dinner Starch | B108: french fries | C108: 165.5 | D108: 82.75 | E108: 40.08 | F108: 17.4 | G108: 0 | H108: 173 | I108: 30 | J108: 2342 | K108: 390 | L108: 175 | M108: 64 | N108: 0 | O108: 700 | P108: 0 | Q108: 760 | R108: 11.1 | S108: 0 | T108: 9000 | U108: 145 | V108: 1290 | W108: 30000 | X108: 242 | Y108: 143000 | Z108: 473000 | AA108: 1.2 | AB108: 455000 | AC108: 1100 | AD108: 36.66 | AE108: 2.9 | AF108: 0 | AG108: 0 | AH108: 0 | AI108: 0 | AJ108: 0.69 | AK108: 60
A109: Protein | B109: frog legs | C109: 36.5 | D109: 18.25 | E109: 0 | F109: 0.3 | G109: 50 | H109: 140 | I109: 250 | J109: 1200 | K109: 0 | L109: 120 | M109: 15 | N109: 0.4 | O109: 0 | P109: 8 | Q109: 1000 | R109: 0.1 | S109: 65000 | T109: 18000 | U109: 250 | V109: 1500 | W109: 20000 | X109: 0 | Y109: 147000 | Z109: 285000 | AA109: 14.1 | AB109: 58000 | AC109: 1000 | AD109: 81.9 | AE109: 0 | AF109: 50 | AG109: 0.076 | AH109: 0.053 | AI109: 0.102 | AJ109: 0 | AK109: 0
B110: fructose | C110: 200 | D110: 100 | E110: 100 | F110: 0 | G110: 0 | H110: 0 | I110: 0 | J110: 0 | K110: 0 | L110: 0 | M110: 0 | N110: 0 | O110: 0 | P110: 0 | Q110: 0 | R110: 0 | S110: 0 | T110: 0 | U110: 0 | V110: 0 | W110: 0 | X110: 0 | Y110: 0 | Z110: 0 | AA110: 0 | AB110: 0 | AC110: 0 | AD110: 0 | AE110: 0 | AF110: 0 | AG110: 0 | AH110: 0 | AI110: 0 | AJ110: 100 | AK110: 20
B111: garlic | C111: 74.5 | D111: 37.25 | E111: 33.06 | F111: 0.5 | G111: 9 | H111: 200 | I111: 110 | J111: 700 | K111: 596 | L111: 1235 | M111: 3 | N111: 0 | O111: 31200 | P111: 0 | Q111: 80 | R111: 1.7 | S111: 23200 | T111: 181000 | U111: 299 | V111: 1700 | W111: 25000 | X111: 1672 | Y111: 153000 | Z111: 401000 | AA111: 14.2 | AB111: 17000 | AC111: 1160 | AD111: 58.58 | AE111: 2.1 | AF111: 0 | AG111: 0.089 | AH111: 0.011 | AI111: 0.249 | AJ111: 1 | AK111: 30
B112: goose, liver, raw | C112: 66.5 | D112: 33.25 | E112: 6.32 | F112: 4.28 | G112: 30998 | H112: 562 | I112: 892 | J112: 6500 | K112: 6184 | L112: 760 | M112: 738 | N112: 54 | O112: 4500 | P112: 0 | Q112: 0 | R112: 0 | S112: 0 | T112: 43000 | U112: 7522 | V112: 30530 | W112: 24000 | X112: 0 | Y112: 261000 | Z112: 230000 | AA112: 68.1 | AB112: 140000 | AC112: 3070 | AD112: 71.78 | AE112: 0 | AF112: 515 | AG112: 1.59 | AH112: 0.81 | AI112: 0.26 | AJ112: 0 | AK112: 0
A113: Protein | B113: goose, meat without skin | C113: 80.5 | D113: 40.25 | E113: 0 | F113: 7.13 | G113: 40 | H113: 129 | I113: 377 | J113: 4278 | K113: 1973 | L113: 640 | M113: 31 | N113: 0.49 | O113: 7200 | P113: 0 | Q113: 0 | R113: 0 | S113: 0 | T113: 13000 | U113: 306 | V113: 2570 | W113: 24000 | X113: 24 | Y113: 312000 | Z113: 420000 | AA113: 16.8 | AB113: 87000 | AC113: 2340 | AD113: 68.3 | AE113: 0 | AF113: 84 | AG113: 2.79 | AH113: 1.85 | AI113: 0.9 | AJ113: 0 | AK113: 0
A114: Beverage | B114: grape juice | C114: 30 | D114: 15 | E114: 14.77 | F114: 0.13 | G114: 8 | H114: 17 | I114: 15 | J114: 133 | K114: 48 | L114: 32 | M114: 0 | N114: 0 | O114: 100 | P114: 0 | Q114: 0 | R114: 0.4 | S114: 3200 | T114: 11000 | U114: 18 | V114: 250 | W114: 10000 | X114: 239 | Y114: 14000 | Z114: 104000 | AA114: 0 | AB114: 5000 | AC114: 70 | AD114: 84.51 | AE114: 0.2 | AF114: 0 | AG114: 0.025 | AH114: 0.003 | AI114: 0.022 | AJ114: 14.2 | AK114: 55
A115: Lunch Fruit | B115: grapefruit | C115: 16 | D115: 8 | E115: 8.08 | F115: 0.1 | G115: 927 | H115: 36 | I115: 20 | J115: 250 | K115: 283 | L115: 42 | M115: 10 | N115: 0 | O115: 34400 | P115: 0 | Q115: 130 | R115: 0 | S115: 7700 | T115: 12000 | U115: 47 | V115: 90 | W115: 8000 | X115: 12 | Y115: 8000 | Z115: 139000 | AA115: 0.3 | AB115: 0 | AC115: 70 | AD115: 90.89 | AE115: 1.1 | AF115: 0 | AG115: 0.014 | AH115: 0.013 | AI115: 0.024 | AJ115: 6.98 | AK115: 25
A116: Beverage | B116: grapefruit juice | C116: 19 | D116: 9.5 | E116: 8.96 | F116: 0.1 | G116: 7 | H116: 42 | I116: 20 | J116: 231 | K116: 130 | L116: 20 | M116: 10 | N116: 0 | O116: 29200 | P116: 0 | Q116: 40 | R116: 0 | S116: 7700 | T116: 7000 | U116: 38 | V116: 200 | W116: 10000 | X116: 20 | Y116: 11000 | Z116: 153000 | AA116: 0.1 | AB116: 1000 | AC116: 90 | AD116: 90.1 | AE116: 0.1 | AF116: 0 | AG116: 0.013 | AH116: 0.013 | AI116: 0.023 | AJ116: 8.86 | AK116: 48
A117: Dinner Fruit | B117: grapes | C117: 34.5 | D117: 17.25 | E117: 18.1 | F117: 0.16 | G117: 66 | H117: 69 | I117: 70 | J117: 188 | K117: 50 | L117: 86 | M117: 2 | N117: 0 | O117: 10800 | P117: 0 | Q117: 190 | R117: 14.6 | S117: 5600 | T117: 10000 | U117: 127 | V117: 360 | W117: 7000 | X117: 71 | Y117: 20000 | Z117: 191000 | AA117: 0.1 | AB117: 2000 | AC117: 70 | AD117: 80.54 | AE117: 0.9 | AF117: 0 | AG117: 0.054 | AH117: 0.007 | AI117: 0.048 | AJ117: 15.48 | AK117: 46
B118: haddock | C118: 43.5 | D118: 21.75 | E118: 0 | F118: 0.72 | G118: 57 | H118: 35 | I118: 37 | J118: 3803 | K118: 127 | L118: 300 | M118: 12 | N118: 1.2 | O118: 0 | P118: 24 | Q118: 390 | R118: 0.1 | S118: 65000 | T118: 33000 | U118: 26 | V118: 1050 | W118: 39000 | X118: 25 | Y118: 188000 | Z118: 311000 | AA118: 30.2 | AB118: 68000 | AC118: 370 | AD118: 79.92 | AE118: 0 | AF118: 57 | AG118: 0.13 | AH118: 0.118 | AI118: 0.241 | AJ118: 0 | AK118: 0
A119: Protein | B119: halibut | C119: 55 | D119: 27.5 | E119: 0 | F119: 2.29 | G119: 157 | H119: 60 | I119: 75 | J119: 5848 | K119: 329 | L119: 344 | M119: 12 | N119: 1.18 | O119: 0 | P119: 229 | Q119: 850 | R119: 0.1 | S119: 61800 | T119: 47000 | U119: 27 | V119: 840 | W119: 83000 | X119: 15 | Y119: 222000 | Z119: 450000 | AA119: 36.5 | AB119: 54000 | AC119: 420 | AD119: 77.92 | AE119: 0 | AF119: 32 | AG119: 0.325 | AH119: 0.75 | AI119: 0.73 | AJ119: 0 | AK119: 0
A120: Lunch Protein | B120: ham (pork), sliced | C120: 58 | D120: 29 | E120: 0.99 | F120: 3.16 | G120: 44 | H120: 514 | I120: 218 | J120: 7395 | K120: 841 | L120: 506 | M120: 1 | N120: 0.42 | O120: 0 | P120: 37 | Q120: 220 | R120: 0 | S120: 82300 | T120: 6000 | U120: 271 | V120: 940 | W120: 22000 | X120: 26 | Y120: 322000 | Z120: 364000 | AA120: 37 | AB120: 1163000 | AC120: 2140 | AD120: 71.1 | AE120: 0 | AF120: 57 | AG120: 0.975 | AH120: 1.333 | AI120: 0.424 | AJ120: 1.05 | AK120: 0
A121: Nut | B121: hazelnuts (filberts) | C121: 314 | D121: 157 | E121: 16.7 | F121: 60.75 | G121: 20 | H121: 643 | I121: 113 | J121: 1800 | K121: 918 | L121: 563 | M121: 113 | N121: 0 | O121: 6300 | P121: 0 | Q121: 15030 | R121: 14.2 | S121: 45600 | T121: 114000 | U121: 1725 | V121: 4700 | W121: 163000 | X121: 6175 | Y121: 290000 | Z121: 680000 | AA121: 2.4 | AB121: 0 | AC121: 2450 | AD121: 5.31 | AE121: 9.7 | AF121: 0 | AG121: 4.464 | AH121: 45.652 | AI121: 7.92 | AJ121: 4.34 | AK121: 15
A122: Protein | B122: herring | C122: 79 | D122: 39.5 | E122: 0 | F122: 9.04 | G122: 93 | H122: 92 | I122: 233 | J122: 3217 | K122: 645 | L122: 302 | M122: 10 | N122: 13.67 | O122: 700 | P122: 167 | Q122: 1070 | R122: 0.1 | S122: 65000 | T122: 57000 | U122: 92 | V122: 1100 | W122: 32000 | X122: 35 | Y122: 236000 | Z122: 327000 | AA122: 36.5 | AB122: 90000 | AC122: 990 | AD122: 72.05 | AE122: 0 | AF122: 60 | AG122: 2.04 | AH122: 3.736 | AI122: 2.133 | AJ122: 0 | AK122: 0
A123: Sweet | B123: honey | C123: 152 | D123: 76 | E123: 82.4 | F123: 0 | G123: 0 | H123: 0 | I123: 38 | J123: 121 | K123: 68 | L123: 24 | M123: 2 | N123: 0 | O123: 500 | P123: 0 | Q123: 0 | R123: 0 | S123: 2200 | T123: 6000 | U123: 36 | V123: 420 | W123: 2000 | X123: 80 | Y123: 4000 | Z123: 52000 | AA123: 0.8 | AB123: 4000 | AC123: 220 | AD123: 17.1 | AE123: 0.2 | AF123: 0 | AG123: 0 | AH123: 0 | AI123: 0 | AJ123: 82.12 | AK123: 55
A124: Fruit | B124: honeydew melon | C124: 18 | D124: 9 | E124: 9.09 | F124: 0.14 | G124: 50 | H124: 38 | I124: 12 | J124: 418 | K124: 155 | L124: 88 | M124: 19 | N124: 0 | O124: 18000 | P124: 0 | Q124: 20 | R124: 2.9 | S124: 7600 | T124: 6000 | U124: 24 | V124: 170 | W124: 10000 | X124: 27 | Y124: 11000 | Z124: 228000 | AA124: 0.7 | AB124: 18000 | AC124: 90 | AD124: 89.82 | AE124: 0.8 | AF124: 0 | AG124: 0.038 | AH124: 0.003 | AI124: 0.059 | AJ124: 8.12 | AK124: 60
A125: Protein | B125: horse, lean | C125: 66.5 | D125: 33.25 | E125: 0 | F125: 4.6 | G125: 0 | H125: 130 | I125: 100 | J125: 4600 | K125: 0 | L125: 380 | M125: 0 | N125: 3 | O125: 1000 | P125: 0 | Q125: 0 | R125: 0 | S125: 0 | T125: 6000 | U125: 144 | V125: 3820 | W125: 24000 | X125: 19 | Y125: 221000 | Z125: 360000 | AA125: 10.1 | AB125: 53000 | AC125: 2900 | AD125: 72.63 | AE125: 0 | AF125: 52 | AG125: 1.44 | AH125: 1.61 | AI125: 0.65 | AJ125: 0 | AK125: 0
A126: Lunch Protein | B126: hotdog | C126: 123.5 | D126: 61.75 | E126: 18.4 | F126: 14.84 | G126: 0 | H126: 240 | I126: 280 | J126: 3720 | K126: 520 | L126: 50 | M126: 49 | N126: 0.52 | O126: 100 | P126: 0 | Q126: 0 | R126: 0 | S126: 0 | T126: 24000 | U126: 78 | V126: 2360 | W126: 13000 | X126: 93 | Y126: 99000 | Z126: 146000 | AA126: 26.5 | AB126: 684000 | AC126: 2020 | AD126: 53.96 | AE126: 0 | AF126: 45 | AG126: 5.213 | AH126: 6.993 | AI126: 1.741 | AJ126: 0 | AK126: 50
A127: Dinner Vegetable | B127: kale | C127: 25 | D127: 12.5 | E127: 10.01 | F127: 0.7 | G127: 15376 | H127: 110 | I127: 130 | J127: 1000 | K127: 91 | L127: 271 | M127: 29 | N127: 0 | O127: 120000 | P127: 0 | Q127: 0 | R127: 817 | S127: 0 | T127: 135000 | U127: 290 | V127: 1700 | W127: 34000 | X127: 774 | Y127: 56000 | Z127: 447000 | AA127: 0.9 | AB127: 43000 | AC127: 440 | AD127: 84.46 | AE127: 2 | AF127: 0 | AG127: 0.091 | AH127: 0.052 | AI127: 0.338 | AJ127: 0 | AK127: 15
B128: Kellogg's Special K (cereal) | C128: 189.5 | D128: 94.75 | E128: 71 | F128: 1.55 | G128: 2474 | H128: 1700 | I128: 1900 | J128: 23000 | K128: 0 | L128: 6400 | M128: 1290 | N128: 19.5 | O128: 67700 | P128: 0 | Q128: 15300 | R128: 0.5 | S128: 31000 | T128: 30000 | U128: 200 | V128: 27000 | W128: 62000 | X128: 2772 | Y128: 219000 | Z128: 196000 | AA128: 54.9 | AB128: 721000 | AC128: 2900 | AD128: 3 | AE128: 2.4 | AF128: 0 | AG128: 0.35 | AH128: 0.4 | AI128: 0.8 | AJ128: 12.9 | AK128: 70
A129: Breakfast Grain | B129: Kellogg's Special K chocolate (cereal) | C129: 193.5 | D129: 96.75 | E129: 83.29 | F129: 5.67 | G129: 2419 | H129: 1694 | I129: 1919 | J129: 22581 | K129: 551 | L129: 2258 | M129: 452 | N129: 6.77 | O129: 67700 | P129: 129 | Q129: 260 | R129: 1.2 | S129: 14400 | T129: 41000 | U129: 200 | V129: 26130 | W129: 46000 | X129: 1169 | Y129: 127000 | Z129: 242000 | AA129: 18.2 | AB129: 581000 | AC129: 1160 | AD129: 3 | AE129: 3.4 | AF129: 4 | AG129: 4.912 | AH129: 0.076 | AI129: 0.076 | AJ129: 30.26 | AK129: 69
B130: Kellogg's Special K red berries (cereal) | C130: 184.5 | D130: 92.25 | E130: 80.6 | F130: 1 | G130: 2419 | H130: 1690 | I130: 2000 | J130: 22600 | K130: 475 | L130: 2260 | M130: 452 | N130: 6.8 | O130: 67700 | P130: 0 | Q130: 15260 | R130: 0.6 | S130: 21800 | T130: 60000 | U130: 170 | V130: 26200 | W130: 39000 | X130: 1417 | Y130: 162000 | Z130: 242000 | AA130: 13 | AB130: 710000 | AC130: 1600 | AD130: 3 | AE130: 3.2 | AF130: 0 | AG130: 0.24 | AH130: 0.2 | AI130: 0.6 | AJ130: 32.2 | AK130: 71
A131: Fruit | B131: kiwi fruit | C131: 30.5 | D131: 15.25 | E131: 14.66 | F131: 0.52 | G131: 87 | H131: 27 | I131: 25 | J131: 341 | K131: 183 | L131: 63 | M131: 25 | N131: 0 | O131: 92700 | P131: 0 | Q131: 1460 | R131: 40.3 | S131: 7800 | T131: 34000 | U131: 130 | V131: 310 | W131: 17000 | X131: 98 | Y131: 34000 | Z131: 312000 | AA131: 0.2 | AB131: 3000 | AC131: 140 | AD131: 83.07 | AE131: 3 | AF131: 0 | AG131: 0.029 | AH131: 0.047 | AI131: 0.287 | AJ131: 8.99 | AK131: 53
B132: lactose | C132: 200 | D132: =C132/2 -> 100 | E132: 100 | F132: 0 | G132: 0 | H132: 0 | I132: 0 | J132: 0 | K132: 0 | L132: 0 | M132: 0 | N132: 0 | O132: 0 | P132: 0 | Q132: 0 | R132: 0 | S132: 0 | T132: 0 | U132: 0 | V132: 0 | W132: 0 | X132: 0 | Y132: 0 | Z132: 0 | AA132: 0 | AB132: 0 | AC132: 0 | AD132: 0 | AE132: 0 | AF132: 0 | AG132: 0 | AH132: 0 | AI132: 0 | AJ132: 100 | AK132: 45
A133: Protein | B133: lamb, lean | C133: 71.5 | D133: 35.75 | E133: 0 | F133: 5.94 | G133: 0 | H133: 130 | I133: 230 | J133: 6510 | K133: 660 | L133: 170 | M133: 24 | N133: 2.21 | O133: 0 | P133: 0 | Q133: 190 | R133: 0 | S133: 0 | T133: 12000 | U133: 128 | V133: 1910 | W133: 27000 | X133: 24 | Y133: 190000 | Z133: 276000 | AA133: 23.6 | AB133: 68000 | AC133: 3190 | AD133: 72.55 | AE133: 0 | AF133: 66 | AG133: 2.13 | AH133: 2.39 | AI133: 0.54 | AJ133: 0 | AK133: 0
B134: lemon juice | C134: 10.5 | D134: 5.25 | E134: 6.48 | F134: 0.29 | G134: 15 | H134: 41 | I134: 9 | J134: 197 | K134: 91 | L134: 43 | M134: 10 | N134: 0 | O134: 24800 | P134: 0 | Q134: 150 | R134: 0 | S134: 5100 | T134: 11000 | U134: 37 | V134: 130 | W134: 8000 | X134: 20 | Y134: 9000 | Z134: 102000 | AA134: 0.1 | AB134: 21000 | AC134: 60 | AD134: 92.46 | AE134: 0.4 | AF134: 0 | AG134: 0.038 | AH134: 0.011 | AI134: 0.085 | AJ134: 2.4 | AK134: 20
A135: Protein | B135: lentils | C135: 176.5 | D135: 88.25 | E135: 60.08 | F135: 1.06 | G135: 39 | H135: 873 | I135: 211 | J135: 2605 | K135: 2140 | L135: 540 | M135: 479 | N135: 0 | O135: 4400 | P135: 0 | Q135: 490 | R135: 5 | S135: 96400 | T135: 56000 | U135: 519 | V135: 7540 | W135: 122000 | X135: 1330 | Y135: 451000 | Z135: 955000 | AA135: 8.3 | AB135: 6000 | AC135: 4780 | AD135: 10.4 | AE135: 30.5 | AF135: 0 | AG135: 0.156 | AH135: 0.189 | AI135: 0.516 | AJ135: 2.03 | AK135: 30
A136: Dinner Vegetable | B136: lettuce, green | C136: 7.5 | D136: 3.75 | E136: 2.79 | F136: 0.15 | G136: 7405 | H136: 70 | I136: 80 | J136: 375 | K136: 134 | L136: 90 | M136: 38 | N136: 0 | O136: 18000 | P136: 0 | Q136: 290 | R136: 173.6 | S136: 13400 | T136: 36000 | U136: 29 | V136: 860 | W136: 13000 | X136: 250 | Y136: 29000 | Z136: 194000 | AA136: 0.6 | AB136: 28000 | AC136: 180 | AD136: 95.07 | AE136: 1.3 | AF136: 0 | AG136: 0.02 | AH136: 0.006 | AI136: 0.082 | AJ136: 0.78 | AK136: 15
B137: lettuce, red | C137: 8 | D137: 4 | E137: 2.26 | F137: 0.22 | G137: 7492 | H137: 64 | I137: 77 | J137: 321 | K137: 144 | L137: 100 | M137: 36 | N137: 0 | O137: 3700 | P137: 0 | Q137: 150 | R137: 140.3 | S137: 11800 | T137: 33000 | U137: 28 | V137: 1200 | W137: 12000 | X137: 203 | Y137: 28000 | Z137: 187000 | AA137: 1.5 | AB137: 25000 | AC137: 200 | AD137: 95.64 | AE137: 0.9 | AF137: 0 | AG137: 0 | AH137: 0 | AI137: 0 | AJ137: 0.48 | AK137: 15
A138: Lunch Starch | B138: lima beans | C138: 169 | D138: 84.5 | E138: 63.38 | F138: 0.69 | G138: 0 | H138: 507 | I138: 202 | J138: 1537 | K138: 1355 | L138: 512 | M138: 395 | N138: 0 | O138: 0 | P138: 0 | Q138: 720 | R138: 6 | S138: 96700 | T138: 81000 | U138: 740 | V138: 7510 | W138: 224000 | X138: 1672 | Y138: 385000 | Z138: 1724000 | AA138: 7.2 | AB138: 18000 | AC138: 2830 | AD138: 10.17 | AE138: 19 | AF138: 0 | AG138: 0.161 | AH138: 0.062 | AI138: 0.309 | AJ138: 8.5 | AK138: 30
B139: litchis | C139: 33 | D139: 16.5 | E139: 16.53 | F139: 0.44 | G139: 0 | H139: 11 | I139: 65 | J139: 603 | K139: 0 | L139: 100 | M139: 14 | N139: 0 | O139: 71500 | P139: 0 | Q139: 70 | R139: 0.4 | S139: 7100 | T139: 5000 | U139: 148 | V139: 310 | W139: 10000 | X139: 55 | Y139: 31000 | Z139: 171000 | AA139: 0.6 | AB139: 1000 | AC139: 70 | AD139: 81.76 | AE139: 1.3 | AF139: 0 | AG139: 0.099 | AH139: 0.12 | AI139: 0.132 | AJ139: 15.23 | AK139: 50
B140: litchis, dried | C140: 138.5 | D140: 69.25 | E140: 70.7 | F140: 1.2 | G140: 0 | H140: 10 | I140: 570 | J140: 3100 | K140: 0 | L140: 90 | M140: 12 | N140: 0 | O140: 183000 | P140: 0 | Q140: 310 | R140: 1.6 | S140: 12700 | T140: 33000 | U140: 631 | V140: 1700 | W140: 42000 | X140: 234 | Y140: 181000 | Z140: 1110000 | AA140: 1.3 | AB140: 3000 | AC140: 280 | AD140: 22.3 | AE140: 4.6 | AF140: 0 | AG140: 0.27 | AH140: 0.328 | AI140: 0.361 | AJ140: 66.1 | AK140: 60
B141: liver pate | C141: 159.5 | D141: 79.75 | E141: 1.5 | F141: 28 | G141: 3300 | H141: 30 | I141: 600 | J141: 3300 | K141: 1200 | L141: 60 | M141: 60 | N141: 3.2 | O141: 2000 | P141: 0 | Q141: 0 | R141: 0 | S141: 0 | T141: 70000 | U141: 400 | V141: 5500 | W141: 13000 | X141: 120 | Y141: 200000 | Z141: 138000 | AA141: 41.6 | AB141: 697000 | AC141: 2850 | AD141: 53.9 | AE141: 0 | AF141: 255 | AG141: 9.57 | AH141: 12.36 | AI141: 3.16 | AJ141: 0 | AK141: 0
A142: Lunch Protein | B142: liver sausage | C142: 163 | D142: 81.5 | E142: 2.2 | F142: 28.5 | G142: 27667 | H142: 272 | I142: 1030 | J142: 4300 | K142: 2950 | L142: 190 | M142: 30 | N142: 13.46 | O142: 0 | P142: 0 | Q142: 0 | R142: 0 | S142: 0 | T142: 26000 | U142: 240 | V142: 6400 | W142: 12000 | X142: 155 | Y142: 230000 | Z142: 170000 | AA142: 58 | AB142: 860000 | AC142: 2300 | AD142: 52.1 | AE142: 0 | AF142: 158 | AG142: 10.6 | AH142: 13.34 | AI142: 2.6 | AJ142: 0 | AK142: 0
A143: Protein | B143: lobster | C143: 45 | D143: 22.5 | E143: 0.5 | F143: 0.9 | G143: 70 | H143: 6 | I143: 48 | J143: 1455 | K143: 1630 | L143: 63 | M143: 9 | N143: 0.93 | O143: 0 | P143: 0 | Q143: 1470 | R143: 0.1 | S143: 80900 | T143: 48000 | U143: 1663 | V143: 300 | W143: 27000 | X143: 55 | Y143: 144000 | Z143: 275000 | AA143: 41.4 | AB143: 296000 | AC143: 3020 | AD143: 76.76 | AE143: 0 | AF143: 95 | AG143: 0.18 | AH143: 0.26 | AI143: 0.15 | AJ143: 0 | AK143: 0
A144: Lunch Starch | B144: macaroni, dry | C144: 185.5 | D144: 92.75 | E144: 74.67 | F144: 1.51 | G144: 0 | H144: 90 | I144: 60 | J144: 1700 | K144: 431 | L144: 142 | M144: 18 | N144: 0 | O144: 0 | P144: 0 | Q144: 110 | R144: 0.1 | S144: 0 | T144: 21000 | U144: 289 | V144: 1300 | W144: 53000 | X144: 917 | Y144: 189000 | Z144: 223000 | AA144: 63.2 | AB144: 6000 | AC144: 1410 | AD144: 9.9 | AE144: 3.2 | AF144: 0 | AG144: 0.277 | AH144: 0.171 | AI144: 0.564 | AJ144: 2.67 | AK144: 47
B145: mackerel | C145: 102.5 | D145: 51.25 | E145: 0 | F145: 13.89 | G145: 167 | H145: 176 | I145: 312 | J145: 9080 | K145: 856 | L145: 399 | M145: 1 | N145: 8.71 | O145: 400 | P145: 643 | Q145: 1520 | R145: 5 | S145: 65000 | T145: 12000 | U145: 73 | V145: 1630 | W145: 76000 | X145: 15 | Y145: 217000 | Z145: 314000 | AA145: 44.1 | AB145: 90000 | AC145: 630 | AD145: 63.55 | AE145: 0 | AF145: 70 | AG145: 3.257 | AH145: 5.456 | AI145: 3.35 | AJ145: 0 | AK145: 0
B146: maltodextrin | C146: 200 | D146: 100 | E146: 100 | F146: 0 | G146: 0 | H146: 0 | I146: 0 | J146: 0 | K146: 0 | L146: 0 | M146: 0 | N146: 0 | O146: 0 | P146: 0 | Q146: 0 | R146: 0 | S146: 0 | T146: 0 | U146: 0 | V146: 0 | W146: 0 | X146: 0 | Y146: 0 | Z146: 0 | AA146: 0 | AB146: 0 | AC146: 0 | AD146: 0 | AE146: 0 | AF146: 0 | AG146: 0 | AH146: 0 | AI146: 0 | AJ146: 0 | AK146: 95
B147: milk powder, nonfat, dry | C147: 181 | D147: 90.5 | E147: 51.98 | F147: 0.77 | G147: 22 | H147: 415 | I147: 1550 | J147: 951 | K147: 3568 | L147: 361 | M147: 50 | N147: 4.03 | O147: 6800 | P147: 0 | Q147: 0 | R147: 0.1 | S147: 169200 | T147: 1257000 | U147: 41 | V147: 320 | W147: 110000 | X147: 20 | Y147: 968000 | Z147: 1794000 | AA147: 27.3 | AB147: 535000 | AC147: 4080 | AD147: 3.16 | AE147: 0 | AF147: 20 | AG147: 0.499 | AH147: 0.201 | AI147: 0.03 | AJ147: 51.98 | AK147: 30
A148: Dairy | B148: milk, 1% fat | C148: 21 | D148: 10.5 | E148: 4.99 | F148: 0.97 | G148: 47 | H148: 20 | I148: 185 | J148: 93 | K148: 361 | L148: 37 | M148: 5 | N148: 0.47 | O148: 0 | P148: 1 | Q148: 10 | R148: 0.1 | S148: 17700 | T148: 125000 | U148: 10 | V148: 30 | W148: 11000 | X148: 3 | Y148: 95000 | Z148: 150000 | AA148: 3.3 | AB148: 44000 | AC148: 420 | AD148: 89.92 | AE148: 0 | AF148: 5 | AG148: 0.633 | AH148: 0.277 | AI148: 0.035 | AJ148: 5.2 | AK148: 32 | AL148: breakfast protein
B149: milk, 1.5% fat | C149: 23 | D149: 11.5 | E149: 4.895 | F149: 1.475 | G149: 74.5 | H149: 29.5 | I149: 185 | J149: 92.5 | K149: 358.5 | L149: 37.5 | M149: 5 | N149: 0.5 | O149: 100 | P149: 1 | Q149: 20 | R149: 0.15 | S149: 17050 | T149: 122500 | U149: 8 | V149: 25 | W149: 11000 | X149: 8.5 | Y149: 93500 | Z149: 145000 | AA149: 2.9 | AB149: 45500 | AC149: 450 | AD149: 89.565 | AE149: 0 | AF149: 6.5 | AG149: 0.945 | AH149: 0.6715 | AI149: 0.0945 | AJ149: 5.13 | AK149: 31
B150: milk, 2% fat | C150: 25 | D150: 12.5 | E150: 4.8 | F150: 1.98 | G150: 102 | H150: 39 | I150: 185 | J150: 92 | K150: 356 | L150: 38 | M150: 5 | N150: 0.53 | O150: 200 | P150: 1 | Q150: 30 | R150: 0.2 | S150: 16400 | T150: 120000 | U150: 6 | V150: 20 | W150: 11000 | X150: 14 | Y150: 92000 | Z150: 140000 | AA150: 2.5 | AB150: 47000 | AC150: 480 | AD150: 89.21 | AE150: 0 | AF150: 8 | AG150: 1.257 | AH150: 1.066 | AI150: 0.154 | AJ150: 5.06 | AK150: 31
B151: milk, nonfat (skimmed) | C151: 17 | D151: 8.5 | E151: 4.96 | F151: 0.08 | G151: 15 | H151: 45 | I151: 182 | J151: 94 | K151: 357 | L151: 37 | M151: 5 | N151: 0.5 | O151: 0 | P151: 0 | Q151: 10 | R151: 0 | S151: 15600 | T151: 122000 | U151: 13 | V151: 30 | W151: 11000 | X151: 3 | Y151: 101000 | Z151: 156000 | AA151: 3.1 | AB151: 42000 | AC151: 420 | AD151: 90.84 | AE151: 0 | AF151: 2 | AG151: 0.051 | AH151: 0.021 | AI151: 0.003 | AJ151: 5.09 | AK151: 33
B152: milk, whole (3.25% fat) | C152: 30.5 | D152: 15.25 | E152: 4.78 | F152: 3.27 | G152: 162 | H152: 46 | I152: 169 | J152: 89 | K152: 373 | L152: 36 | M152: 5 | N152: 0.45 | O152: 0 | P152: 2 | Q152: 70 | R152: 0.3 | S152: 14300 | T152: 113000 | U152: 25 | V152: 30 | W152: 10000 | X152: 4 | Y152: 84000 | Z152: 132000 | AA152: 3.7 | AB152: 43000 | AC152: 370 | AD152: 88.13 | AE152: 0 | AF152: 10 | AG152: 1.865 | AH152: 0.812 | AI152: 0.195 | AJ152: 5.26 | AK152: 30
B153: millet | C153: 189 | D153: 94.5 | E153: 72.85 | F153: 4.22 | G153: 0 | H153: 421 | I153: 290 | J153: 4720 | K153: 848 | L153: 384 | M153: 85 | N153: 0 | O153: 0 | P153: 0 | Q153: 50 | R153: 0.9 | S153: 0 | T153: 8000 | U153: 750 | V153: 3010 | W153: 114000 | X153: 1632 | Y153: 285000 | Z153: 195000 | AA153: 2.7 | AB153: 5000 | AC153: 1680 | AD153: 8.67 | AE153: 8.5 | AF153: 0 | AG153: 0.723 | AH153: 0.773 | AI153: 2.134 | AJ153: 0 | AK153: 66
B154: mozarella cheese, fat | C154: 150 | D154: 75 | E154: 2.19 | F154: 22.35 | G154: 676 | H154: 30 | I154: 283 | J154: 104 | K154: 141 | L154: 37 | M154: 7 | N154: 2.28 | O154: 0 | P154: 16 | Q154: 190 | R154: 2.3 | S154: 15400 | T154: 505000 | U154: 11 | V154: 440 | W154: 20000 | X154: 30 | Y154: 354000 | Z154: 76000 | AA154: 17 | AB154: 627000 | AC154: 2920 | AD154: 50.01 | AE154: 0 | AF154: 79 | AG154: 13.152 | AH154: 6.573 | AI154: 0.765 | AJ154: 1.03 | AK154: 0
A155: Cheese | B155: mozarella cheese, low fat | C155: 127 | D155: 63.5 | E155: 2.77 | F155: 15.92 | G155: 481 | H155: 18 | I155: 303 | J155: 105 | K155: 79 | L155: 70 | M155: 9 | N155: 0.82 | O155: 0 | P155: 12 | Q155: 140 | R155: 1.6 | S155: 15400 | T155: 782000 | U155: 25 | V155: 220 | W155: 23000 | X155: 10 | Y155: 463000 | Z155: 84000 | AA155: 14.4 | AB155: 619000 | AC155: 2760 | AD155: 53.78 | AE155: 0 | AF155: 64 | AG155: 10.114 | AH155: 4.51 | AI155: 0.472 | AJ155: 1.13 | AK155: 0
A156: Nut | B156: muesli, dried fruit and nuts | C156: 170 | D156: 85 | E156: 77.8 | F156: 4.9 | G156: 546 | H156: 910 | I156: 1030 | J156: 12150 | K156: 4600 | L156: 1220 | M156: 243 | N156: 3.65 | O156: 0 | P156: 0 | Q156: 7200 | R156: 2.9 | S156: 22600 | T156: 0 | U156: 390 | V156: 8750 | W156: 78000 | X156: 2177 | Y156: 243000 | Z156: 486000 | AA156: 17.3 | AB156: 231000 | AC156: 3650 | AD156: 5.8 | AE156: 7.3 | AF156: 0 | AG156: 0.805 | AH156: 2.38 | AI156: 1.315 | AJ156: 31 | AK156: 60
A157: Dinner Starch | B157: mungo beans | C157: 170.5 | D157: 85.25 | E157: 58.99 | F157: 1.64 | G157: 23 | H157: 273 | I157: 254 | J157: 1447 | K157: 906 | L157: 281 | M157: 216 | N157: 0 | O157: 0 | P157: 0 | Q157: 0 | R157: 0 | S157: 0 | T157: 138000 | U157: 981 | V157: 7570 | W157: 267000 | X157: 1527 | Y157: 379000 | Z157: 983000 | AA157: 8.2 | AB157: 38000 | AC157: 3350 | AD157: 10.8 | AE157: 18.3 | AF157: 0 | AG157: 0.114 | AH157: 0.085 | AI157: 1.071 | AJ157: 0 | AK157: 30
A158: Lunch Vegetable | B158: mushrooms, white | C158: 11 | D158: 5.5 | E158: 3.26 | F158: 0.34 | G158: 0 | H158: 81 | I158: 402 | J158: 3607 | K158: 1497 | L158: 104 | M158: 16 | N158: 0.04 | O158: 2100 | P158: 7 | Q158: 10 | R158: 0 | S158: 17300 | T158: 3000 | U158: 318 | V158: 500 | W158: 9000 | X158: 47 | Y158: 86000 | Z158: 318000 | AA158: 9.3 | AB158: 5000 | AC158: 520 | AD158: 92.45 | AE158: 1 | AF158: 0 | AG158: 0.05 | AH158: 0 | AI158: 0.16 | AJ158: 1.98 | AK158: 15
A159: Protein | B159: mussels | C159: 43 | D159: 21.5 | E159: 3.69 | F159: 2.24 | G159: 160 | H159: 160 | I159: 210 | J159: 1600 | K159: 500 | L159: 50 | M159: 42 | N159: 12 | O159: 8000 | P159: 0 | Q159: 550 | R159: 0.1 | S159: 65000 | T159: 26000 | U159: 94 | V159: 3950 | W159: 34000 | X159: 3400 | Y159: 197000 | Z159: 320000 | AA159: 44.8 | AB159: 286000 | AC159: 1600 | AD159: 80.58 | AE159: 0 | AF159: 28 | AG159: 0.425 | AH159: 0.507 | AI159: 0.606 | AJ159: 0 | AK159: 0
B160: nachos chips (snack) | C160: 257 | D160: 128.5 | E160: 61.74 | F160: 26.07 | G160: 0 | H160: 49 | I160: 40 | J160: 1300 | K160: 700 | L160: 200 | M160: 0 | N160: 0 | O160: 0 | P160: 0 | Q160: 0 | R160: 1.3 | S160: 22500 | T160: 148000 | U160: 103 | V160: 1090 | W160: 76000 | X160: 348 | Y160: 256000 | Z160: 238000 | AA160: 7.7 | AB160: 615000 | AC160: 1480 | AD160: 1.5 | AE160: 4.6 | AF160: 0 | AG160: 3.936 | AH160: 7.067 | AI160: 13.624 | AJ160: 3.79 | AK160: 63
A161: Sweet | B161: nachos with cheese | C161: 153 | D161: 76.5 | E161: 32.15 | F161: 16.77 | G161: 495 | H161: 170 | I161: 330 | J161: 1360 | K161: 1160 | L161: 180 | M161: 9 | N161: 0.73 | O161: 1100 | P161: 0 | Q161: 0 | R161: 0 | S161: 26400 | T161: 241000 | U161: 124 | V161: 1130 | W161: 49000 | X161: 198 | Y161: 244000 | Z161: 152000 | AA161: 13.9 | AB161: 722000 | AC161: 1580 | AD161: 40.45 | AE161: 0 | AF161: 16 | AG161: 6.885 | AH161: 7.074 | AI161: 1.976 | AJ161: 0 | AK161: 55
A162: Dinner Fruit | B162: nectarine | C162: 22 | D162: 11 | E162: 10.55 | F162: 0.32 | G162: 332 | H162: 34 | I162: 27 | J162: 1125 | K162: 185 | L162: 25 | M162: 5 | N162: 0 | O162: 5400 | P162: 0 | Q162: 770 | R162: 2.2 | S162: 6200 | T162: 6000 | U162: 86 | V162: 280 | W162: 9000 | X162: 54 | Y162: 26000 | Z162: 201000 | AA162: 0 | AB162: 0 | AC162: 170 | AD162: 87.59 | AE162: 1.7 | AF162: 0 | AG162: 0.025 | AH162: 0.088 | AI162: 0.113 | AJ162: 7.89 | AK162: 43
A163: Dinner Starch | B163: noodles, eggs | C163: 192 | D163: 96 | E163: 71.27 | F163: 4.44 | G163: 62 | H163: 170 | I163: 90 | J163: 2100 | K163: 912 | L163: 216 | M163: 29 | N163: 0.29 | O163: 0 | P163: 11 | Q163: 370 | R163: 0.5 | S163: 78700 | T163: 35000 | U163: 297 | V163: 1900 | W163: 58000 | X163: 855 | Y163: 241000 | Z163: 244000 | AA163: 78.8 | AB163: 21000 | AC163: 1920 | AD163: 9.01 | AE163: 3.3 | AF163: 84 | AG163: 1.18 | AH163: 1.252 | AI163: 1.331 | AJ163: 1.88 | AK163: 50
A164: Breakfast Grain | B164: oats | C164: 194.5 | D164: 97.25 | E164: 66.27 | F164: 6.9 | G164: 0 | H164: 763 | I164: 139 | J164: 961 | K164: 1349 | L164: 119 | M164: 56 | N164: 0 | O164: 0 | P164: 0 | Q164: 1090 | R164: 0 | S164: 0 | T164: 54000 | U164: 626 | V164: 4720 | W164: 177000 | X164: 4916 | Y164: 523000 | Z164: 429000 | AA164: 0 | AB164: 2000 | AC164: 3970 | AD164: 8.22 | AE164: 10.6 | AF164: 0 | AG164: 1.217 | AH164: 2.178 | AI164: 2.535 | AJ164: 0 | AK164: 60
B165: oats, fine powder | C165: 194 | D165: 97 | E165: 70.7 | F165: 7.9 | G165: 0 | H165: 692 | I165: 125 | J165: 1474 | K165: 201 | L165: 125 | M165: 32 | N165: 0 | O165: 0 | P165: 0 | Q165: 700 | R165: 3 | S165: 0 | T165: 55000 | U165: 437 | V165: 4000 | W165: 144000 | X165: 4019 | Y165: 452000 | Z165: 371000 | AA165: 34 | AB165: 30000 | AC165: 3200 | AD165: 2.8 | AE165: 8.8 | AF165: 0 | AG165: 1.3 | AH165: 3.3 | AI165: 3.3 | AJ165: 0.8 | AK165: 65
A166: Dinner Vegetable | B166: okra | C166: 15.5 | D166: 7.75 | E166: 7.03 | F166: 0.1 | G166: 375 | H166: 200 | I166: 60 | J166: 1000 | K166: 245 | L166: 215 | M166: 88 | N166: 0 | O166: 21100 | P166: 0 | Q166: 360 | R166: 53 | S166: 12300 | T166: 81000 | U166: 94 | V166: 800 | W166: 57000 | X166: 990 | Y166: 63000 | Z166: 303000 | AA166: 0.7 | AB166: 8000 | AC166: 600 | AD166: 90.17 | AE166: 3.2 | AF166: 0 | AG166: 0.026 | AH166: 0.017 | AI166: 0.027 | AJ166: 1.2 | AK166: 35
B167: olive oil | C167: 442 | D167: 221 | E167: 0 | F167: 100 | G167: 0 | H167: 0 | I167: 0 | J167: 0 | K167: 0 | L167: 0 | M167: 0 | N167: 0 | O167: 0 | P167: 0 | Q167: 14350 | R167: 60.2 | S167: 300 | T167: 1000 | U167: 0 | V167: 560 | W167: 0 | X167: 0 | Y167: 0 | Z167: 1000 | AA167: 0 | AB167: 2000 | AC167: 0 | AD167: 0 | AE167: 0 | AF167: 0 | AG167: 13.808 | AH167: 72.961 | AI167: 10.523 | AJ167: 0 | AK167: 0
A168: Dinner Fruit | B168: olives | C168: 57.5 | D168: 28.75 | E168: 6.26 | F168: 10.68 | G168: 403 | H168: 3 | I168: 0 | J168: 37 | K168: 15 | L168: 9 | M168: 0 | N168: 0 | O168: 900 | P168: 0 | Q168: 1650 | R168: 1.4 | S168: 10300 | T168: 88000 | U168: 251 | V168: 3300 | W168: 4000 | X168: 20 | Y168: 3000 | Z168: 8000 | AA168: 0.9 | AB168: 872000 | AC168: 220 | AD168: 79.99 | AE168: 3.2 | AF168: 0 | AG168: 1.415 | AH168: 7.888 | AI168: 0.911 | AJ168: 0 | AK168: 15
A169: Dinner Vegetable | B169: onions | C169: 20 | D169: 10 | E169: 9.34 | F169: 0.1 | G169: 2 | H169: 46 | I169: 27 | J169: 116 | K169: 123 | L169: 120 | M169: 19 | N169: 0 | O169: 7400 | P169: 0 | Q169: 20 | R169: 0.4 | S169: 6100 | T169: 23000 | U169: 39 | V169: 210 | W169: 10000 | X169: 129 | Y169: 29000 | Z169: 146000 | AA169: 0.5 | AB169: 4000 | AC169: 170 | AD169: 89.11 | AE169: 1.7 | AF169: 0 | AG169: 0.042 | AH169: 0.013 | AI169: 0.017 | AJ169: 4.24 | AK169: 15
A170: Beverage | B170: orange juice | C170: 23.5 | D170: 11.75 | E170: 11.01 | F170: 0.15 | G170: 175 | H170: 39 | I170: 21 | J170: 201 | K170: 180 | L170: 31 | M170: 24 | N170: 0 | O170: 30100 | P170: 0 | Q170: 200 | R170: 0.1 | S170: 6200 | T170: 10000 | U170: 22 | V170: 100 | W170: 10000 | X170: 21 | Y170: 17000 | Z170: 184000 | AA170: 0.1 | AB170: 4000 | AC170: 40 | AD170: 87.72 | AE170: 0.3 | AF170: 0 | AG170: 0.018 | AH170: 0.025 | AI170: 0.034 | AJ170: 8.76 | AK170: 52
A171: Dinner Fruit | B171: oranges | C171: 23.5 | D171: 11.75 | E171: 11.75 | F171: 0.12 | G171: 225 | H171: 87 | I171: 40 | J171: 282 | K171: 250 | L171: 60 | M171: 30 | N171: 0 | O171: 53200 | P171: 0 | Q171: 180 | R171: 0 | S171: 8400 | T171: 40000 | U171: 45 | V171: 100 | W171: 10000 | X171: 25 | Y171: 14000 | Z171: 181000 | AA171: 0.5 | AB171: 0 | AC171: 70 | AD171: 86.75 | AE171: 2.4 | AF171: 0 | AG171: 0.015 | AH171: 0.023 | AI171: 0.025 | AJ171: 9.35 | AK171: 42
A172: Protein | B172: ostrich, meat | C172: 57.5 | D172: 28.75 | E172: 0 | F172: 1.96 | G172: 0 | H172: 205 | I172: 302 | J172: 4949 | K172: 1221 | L172: 537 | M172: 8 | N172: 5.21 | O172: 0 | P172: 0 | Q172: 200 | R172: 0 | S172: 0 | T172: 5000 | U172: 142 | V172: 2650 | W172: 23000 | X172: 18 | Y172: 221000 | Z172: 322000 | AA172: 36.6 | AB172: 90000 | AC172: 3890 | AD172: 75.59 | AE172: 0 | AF172: 65 | AG172: 0.61 | AH172: 0.59 | AI172: 0.43 | AJ172: 0 | AK172: 0
A173: Breakfast Grain | B173: pancakes | C173: 97 | D173: 48.5 | E173: 36.7 | F173: 2.5 | G173: 32 | H173: 211 | I173: 217 | J173: 1711 | K173: 243 | L173: 91 | M173: 37 | N173: 0.2 | O173: 200 | P173: 0 | Q173: 0 | R173: 0 | S173: 19200 | T173: 126000 | U173: 94 | V173: 1560 | W173: 20000 | X173: 272 | Y173: 334000 | Z173: 175000 | AA173: 13.5 | AB173: 628000 | AC173: 390 | AD173: 53 | AE173: 1.3 | AF173: 12 | AG173: 0.507 | AH173: 0.881 | AI173: 0.82 | AJ173: 0 | AK173: 70
A174: Fruit | B174: papayas | C174: 19.5 | D174: 9.75 | E174: 9.81 | F174: 0.14 | G174: 1094 | H174: 27 | I174: 32 | J174: 338 | K174: 218 | L174: 19 | M174: 38 | N174: 0 | O174: 61800 | P174: 0 | Q174: 730 | R174: 2.6 | S174: 6100 | T174: 24000 | U174: 16 | V174: 100 | W174: 10000 | X174: 11 | Y174: 5000 | Z174: 257000 | AA174: 0.6 | AB174: 3000 | AC174: 70 | AD174: 88.83 | AE174: 1.8 | AF174: 0 | AG174: 0.043 | AH174: 0.038 | AI174: 0.031 | AJ174: 5.9 | AK174: 59
A175: Lunch Starch | B175: pasta, dry | C175: 185.5 | D175: 92.75 | E175: 74.67 | F175: 1.51 | G175: 0 | H175: 90 | I175: 60 | J175: 1700 | K175: 431 | L175: 142 | M175: 18 | N175: 0 | O175: 0 | P175: 0 | Q175: 110 | R175: 0.1 | S175: 0 | T175: 21000 | U175: 289 | V175: 1300 | W175: 53000 | X175: 917 | Y175: 189000 | Z175: 223000 | AA175: 63.2 | AB175: 6000 | AC175: 1410 | AD175: 9.9 | AE175: 3.2 | AF175: 0 | AG175: 0.277 | AH175: 0.171 | AI175: 0.564 | AJ175: 2.67 | AK175: 42
A176: Lunch Protein | B176: pate de foie gras, goose | C176: 231 | D176: 115.5 | E176: 4.67 | F176: 43.84 | G176: 3333 | H176: 88 | I176: 299 | J176: 2510 | K176: 1200 | L176: 60 | M176: 60 | N176: 9.4 | O176: 2000 | P176: 0 | Q176: 0 | R176: 0 | S176: 0 | T176: 70000 | U176: 400 | V176: 5500 | W176: 13000 | X176: 120 | Y176: 200000 | Z176: 138000 | AA176: 44 | AB176: 697000 | AC176: 920 | AD176: 37.04 | AE176: 0 | AF176: 150 | AG176: 14.45 | AH176: 25.61 | AI176: 0.84 | AJ176: 0 | AK176: 0
A177: Fruit | B177: peaches | C177: 19.5 | D177: 9.75 | E177: 9.54 | F177: 0.25 | G177: 326 | H177: 24 | I177: 31 | J177: 806 | K177: 153 | L177: 25 | M177: 4 | N177: 0 | O177: 6600 | P177: 0 | Q177: 730 | R177: 2.6 | S177: 6100 | T177: 6000 | U177: 68 | V177: 250 | W177: 9000 | X177: 61 | Y177: 20000 | Z177: 190000 | AA177: 0.1 | AB177: 0 | AC177: 170 | AD177: 88.87 | AE177: 1.5 | AF177: 0 | AG177: 0.019 | AH177: 0.067 | AI177: 0.086 | AJ177: 8.39 | AK177: 42
B178: peaches, dried | C178: 119.5 | D178: 59.75 | E178: 61.33 | F178: 0.76 | G178: 2163 | H178: 2 | I178: 212 | J178: 4375 | K178: 564 | L178: 67 | M178: 0 | N178: 0 | O178: 4800 | P178: 0 | Q178: 190 | R178: 15.7 | S178: 12700 | T178: 28000 | U178: 364 | V178: 4060 | W178: 42000 | X178: 305 | Y178: 119000 | Z178: 996000 | AA178: 0.5 | AB178: 7000 | AC178: 570 | AD178: 31.8 | AE178: 8.2 | AF178: 0 | AG178: 0.082 | AH178: 0.278 | AI178: 0.367 | AJ178: 41.74 | AK178: 35
A179: Lunch Protein | B179: peanut butter (>90%) | C179: 294 | D179: 147 | E179: 19.56 | F179: 50.39 | G179: 0 | H179: 73 | I179: 105 | J179: 13403 | K179: 1060 | L179: 543 | M179: 74 | N179: 0 | O179: 0 | P179: 0 | Q179: 8990 | R179: 0.6 | S179: 63000 | T179: 43000 | U179: 473 | V179: 1870 | W179: 154000 | X179: 1466 | Y179: 358000 | Z179: 649000 | AA179: 5.6 | AB179: 17000 | AC179: 2910 | AD179: 1.81 | AE179: 6 | AF179: 0 | AG179: 10.292 | AH179: 23.713 | AI179: 13.867 | AJ179: 9.22 | AK179: 40
A180: Nut | B180: peanuts, roasted | C180: 292.5 | D180: 146.25 | E180: 21.51 | F180: 49.66 | G180: 0 | H180: 438 | I180: 98 | J180: 13525 | K180: 1395 | L180: 256 | M180: 145 | N180: 0 | O180: 0 | P180: 0 | Q180: 6930 | R180: 0 | S180: 55300 | T180: 54000 | U180: 671 | V180: 2260 | W180: 176000 | X180: 2083 | Y180: 358000 | Z180: 658000 | AA180: 7.5 | AB180: 6000 | AC180: 3310 | AD180: 1.55 | AE180: 8 | AF180: 0 | AG180: 6.893 | AH180: 24.64 | AI180: 15.694 | AJ180: 4.18 | AK180: 18
A181: Fruit | B181: pears | C181: 29 | D181: 14.5 | E181: 15.46 | F181: 0.12 | G181: 23 | H181: 12 | I181: 25 | J181: 157 | K181: 48 | L181: 28 | M181: 7 | N181: 0 | O181: 4200 | P181: 0 | Q181: 120 | R181: 4.5 | S181: 5100 | T181: 9000 | U181: 82 | V181: 170 | W181: 7000 | X181: 49 | Y181: 11000 | Z181: 119000 | AA181: 0.1 | AB181: 1000 | AC181: 100 | AD181: 83.71 | AE181: 3.1 | AF181: 0 | AG181: 0.006 | AH181: 0.026 | AI181: 0.029 | AJ181: 9.8 | AK181: 38
A182: Lunch Vegetable | B182: peas | C182: 170.5 | D182: 85.25 | E182: 60.37 | F182: 1.16 | G182: 149 | H182: 726 | I182: 215 | J182: 2889 | K182: 1758 | L182: 174 | M182: 274 | N182: 0 | O182: 1800 | P182: 0 | Q182: 90 | R182: 14.5 | S182: 95500 | T182: 55000 | U182: 866 | V182: 4430 | W182: 115000 | X182: 1391 | Y182: 366000 | Z182: 981000 | AA182: 1.6 | AB182: 15000 | AC182: 3010 | AD182: 11.27 | AE182: 25.5 | AF182: 0 | AG182: 0.161 | AH182: 0.242 | AI182: 0.495 | AJ182: 8 | AK182: 43
A183: Nut | B183: pecans (nuts) | C183: 345.5 | D183: 172.75 | E183: 13.86 | F183: 71.97 | G183: 56 | H183: 660 | I183: 130 | J183: 1167 | K183: 863 | L183: 210 | M183: 22 | N183: 0 | O183: 1100 | P183: 0 | Q183: 1400 | R183: 3.5 | S183: 40500 | T183: 70000 | U183: 1200 | V183: 2530 | W183: 121000 | X183: 4500 | Y183: 277000 | Z183: 410000 | AA183: 3.8 | AB183: 0 | AC183: 4530 | AD183: 3.52 | AE183: 9.6 | AF183: 0 | AG183: 6.18 | AH183: 40.801 | AI183: 21.614 | AJ183: 3.97 | AK183: 20
B184: pepper, green, sweet | C184: 10 | D184: 5 | E184: 4.64 | F184: 0.17 | G184: 370 | H184: 57 | I184: 28 | J184: 480 | K184: 99 | L184: 224 | M184: 10 | N184: 0 | O184: 80400 | P184: 0 | Q184: 370 | R184: 7.4 | S184: 5500 | T184: 10000 | U184: 66 | V184: 340 | W184: 10000 | X184: 122 | Y184: 20000 | Z184: 175000 | AA184: 0 | AB184: 3000 | AC184: 130 | AD184: 93.89 | AE184: 1.7 | AF184: 0 | AG184: 0.058 | AH184: 0.008 | AI184: 0.062 | AJ184: 2.4 | AK184: 15
A185: Lunch Vegetable | B185: pepper, red, sweet | C185: 15.5 | D185: 7.75 | E185: 6.03 | F185: 0.3 | G185: 3131 | H185: 54 | I185: 85 | J185: 979 | K185: 317 | L185: 291 | M185: 46 | N185: 0 | O185: 127700 | P185: 0 | Q185: 1580 | R185: 4.9 | S185: 5600 | T185: 7000 | U185: 17 | V185: 430 | W185: 12000 | X185: 112 | Y185: 26000 | Z185: 211000 | AA185: 0.1 | AB185: 4000 | AC185: 250 | AD185: 92.21 | AE185: 2.1 | AF185: 0 | AG185: 0.027 | AH185: 0.003 | AI185: 0.07 | AJ185: 4.2 | AK185: 15
B186: pepper, yellow, sweet | C186: 13.5 | D186: 6.75 | E186: 6.32 | F186: 0.21 | G186: 200 | H186: 28 | I186: 25 | J186: 890 | K186: 168 | L186: 168 | M186: 26 | N186: 0 | O186: 183500 | P186: 0 | Q186: 0 | R186: 0 | S186: 0 | T186: 11000 | U186: 107 | V186: 460 | W186: 12000 | X186: 117 | Y186: 24000 | Z186: 212000 | AA186: 0.3 | AB186: 2000 | AC186: 170 | AD186: 92.02 | AE186: 0.9 | AF186: 0 | AG186: 0.031 | AH186: 0 | AI186: 0 | AJ186: 0 | AK186: 15
A187: Lunch Vegetable | B187: pickled cucumber | C187: 5.5 | D187: 2.75 | E187: 2.26 | F187: 0.2 | G187: 191 | H187: 0 | I187: 10 | J187: 0 | K187: 38 | L187: 9 | M187: 1 | N187: 0 | O187: 1000 | P187: 0 | Q187: 90 | R187: 47 | S187: 3600 | T187: 0 | U187: 85 | V187: 400 | W187: 4000 | X187: 11 | Y187: 14000 | Z187: 23000 | AA187: 0 | AB187: 1208000 | AC187: 20 | AD187: 94.08 | AE187: 1.2 | AF187: 0 | AG187: 0.052 | AH187: 0.003 | AI187: 0.081 | AJ187: 1.06 | AK187: 15
A188: Fruit | B188: pineapple | C188: 25 | D188: 12.5 | E188: 13.12 | F188: 0.12 | G188: 58 | H188: 79 | I188: 32 | J188: 500 | K188: 213 | L188: 112 | M188: 18 | N188: 0 | O188: 47800 | P188: 0 | Q188: 20 | R188: 0.7 | S188: 5500 | T188: 13000 | U188: 110 | V188: 290 | W188: 12000 | X188: 927 | Y188: 8000 | Z188: 109000 | AA188: 0.1 | AB188: 1000 | AC188: 120 | AD188: 86 | AE188: 1.4 | AF188: 0 | AG188: 0.009 | AH188: 0.013 | AI188: 0.04 | AJ188: 9.85 | AK188: 59
A189: Beverage | B189: pineapple juice | C189: 26.5 | D189: 13.25 | E189: 12.87 | F189: 0.12 | G189: 5 | H189: 58 | I189: 21 | J189: 199 | K189: 56 | L189: 100 | M189: 18 | N189: 0 | O189: 10000 | P189: 0 | Q189: 20 | R189: 0.3 | S189: 3300 | T189: 13000 | U189: 69 | V189: 310 | W189: 12000 | X189: 504 | Y189: 8000 | Z189: 130000 | AA189: 0.1 | AB189: 2000 | AC189: 110 | AD189: 86.37 | AE189: 0.2 | AF189: 0 | AG189: 0.008 | AH189: 0.014 | AI189: 0.042 | AJ189: 9.98 | AK189: 46
A190: Dinner Fruit | B190: pineapple, canned | C190: 30 | D190: 15 | E190: 15.56 | F190: 0.11 | G190: 50 | H190: 102 | I190: 21 | J190: 284 | K190: 0 | L190: 75 | M190: 5 | N190: 0 | O190: 9400 | P190: 0 | Q190: 20 | R190: 0.7 | S190: 5500 | T190: 16000 | U190: 107 | V190: 280 | W190: 15000 | X190: 0 | Y190: 7000 | Z190: 124000 | AA190: 0.4 | AB190: 1000 | AC190: 100 | AD190: 83.51 | AE190: 1.3 | AF190: 0 | AG190: 0.008 | AH190: 0.014 | AI190: 0.04 | AJ190: 14.26 | AK190: 49
A191: Nut | B191: pistachio nuts | C191: 281 | D191: 140.5 | E191: 27.51 | F191: 45.39 | G191: 415 | H191: 870 | I191: 160 | J191: 1300 | K191: 520 | L191: 1700 | M191: 51 | N191: 0 | O191: 5600 | P191: 0 | Q191: 2300 | R191: 0 | S191: 0 | T191: 105000 | U191: 1300 | V191: 3920 | W191: 121000 | X191: 1200 | Y191: 490000 | Z191: 1025000 | AA191: 7 | AB191: 1000 | AC191: 2200 | AD191: 3.91 | AE191: 10.3 | AF191: 0 | AG191: 5.556 | AH191: 23.82 | AI191: 13.744 | AJ191: 7.66 | AK191: 15
B192: pistachio nuts, roasted, salt | C192: 284 | D192: 142 | E192: 26.78 | F192: 45.97 | G192: 262 | H192: 840 | I192: 158 | J192: 1425 | K192: 513 | L192: 1274 | M192: 50 | N192: 0 | O192: 2300 | P192: 0 | Q192: 1930 | R192: 13.2 | S192: 71400 | T192: 110000 | U192: 1325 | V192: 4200 | W192: 120000 | X192: 1275 | Y192: 485000 | Z192: 1042000 | AA192: 9.3 | AB192: 405000 | AC192: 2300 | AD192: 2.03 | AE192: 10.3 | AF192: 0 | AG192: 5.555 | AH192: 24.216 | AI192: 13.899 | AJ192: 7.81 | AK192: 15
A193: Dinner Fruit | B193: plums | C193: 23 | D193: 11.5 | E193: 11.42 | F193: 0.28 | G193: 345 | H193: 28 | I193: 26 | J193: 417 | K193: 135 | L193: 29 | M193: 5 | N193: 0 | O193: 9500 | P193: 0 | Q193: 260 | R193: 6.4 | S193: 1900 | T193: 6000 | U193: 57 | V193: 170 | W193: 7000 | X193: 52 | Y193: 16000 | Z193: 157000 | AA193: 0 | AB193: 0 | AC193: 100 | AD193: 87.23 | AE193: 1.4 | AF193: 0 | AG193: 0.017 | AH193: 0.134 | AI193: 0.044 | AJ193: 9.92 | AK193: 39
B194: plums, dried | C194: 120 | D194: 60 | E194: 63.88 | F194: 0.38 | G194: 781 | H194: 51 | I194: 186 | J194: 1882 | K194: 422 | L194: 205 | M194: 4 | N194: 0 | O194: 600 | P194: 0 | Q194: 430 | R194: 59.5 | S194: 10100 | T194: 43000 | U194: 281 | V194: 930 | W194: 41000 | X194: 299 | Y194: 69000 | Z194: 732000 | AA194: 0.3 | AB194: 2000 | AC194: 440 | AD194: 30.92 | AE194: 7.1 | AF194: 0 | AG194: 0.088 | AH194: 0.053 | AI194: 0.062 | AJ194: 38.13 | AK194: 40
B195: pollock | C195: 46 | D195: 23 | E195: 0 | F195: 0.98 | G195: 46 | H195: 47 | I195: 185 | J195: 3270 | K195: 358 | L195: 287 | M195: 3 | N195: 3.19 | O195: 0 | P195: 42 | Q195: 230 | R195: 0.1 | S195: 75800 | T195: 60000 | U195: 50 | V195: 460 | W195: 67000 | X195: 15 | Y195: 221000 | Z195: 356000 | AA195: 36.5 | AB195: 86000 | AC195: 470 | AD195: 78.18 | AE195: 0 | AF195: 71 | AG195: 0.135 | AH195: 0.112 | AI195: 0.483 | AJ195: 0 | AK195: 0
B196: popcorn cakes | C196: 192 | D196: =C196/2 -> 96 | E196: 80.1 | F196: 3.1 | G196: 72 | H196: 75 | I196: 178 | J196: 6006 | K196: 434 | L196: 181 | M196: 18 | N196: 0 | O196: 0 | P196: 0 | Q196: 290 | R196: 1.1 | S196: 22400 | T196: 9000 | U196: 569 | V196: 1870 | W196: 159000 | X196: 985 | Y196: 277000 | Z196: 327000 | AA196: 9.9 | AB196: 288000 | AC196: 3990 | AD196: 5 | AE196: 2.9 | AF196: 0 | AG196: 0.48 | AH196: 0.92 | AI196: 1.35 | AJ196: 0.72 | AK196: 65
A197: Lunch Starch | B197: popcorn, air-popped | C197: 193.5 | D197: 96.75 | E197: 77.9 | F197: 4.54 | G197: 196 | H197: 104 | I197: 83 | J197: 2308 | K197: 510 | L197: 157 | M197: 31 | N197: 0 | O197: 0 | P197: 0 | Q197: 290 | R197: 1.2 | S197: 21200 | T197: 7000 | U197: 262 | V197: 3190 | W197: 144000 | X197: 1113 | Y197: 358000 | Z197: 329000 | AA197: 0 | AB197: 8000 | AC197: 3080 | AD197: 3.32 | AE197: 14.5 | AF197: 0 | AG197: 0.57 | AH197: 1.1 | AI197: 1.9 | AJ197: 0.87 | AK197: 60
B198: popcorn, oil-popped | C198: 291.5 | D198: 145.75 | E198: 45.06 | F198: 43.55 | G198: 154 | H198: 134 | I198: 57 | J198: 1195 | K198: 230 | L198: 109 | M198: 25 | N198: 0 | O198: 300 | P198: 0 | Q198: 2430 | R198: 4.1 | S198: 12600 | T198: 4000 | U198: 162 | V198: 1980 | W198: 79000 | X198: 629 | Y198: 199000 | Z198: 182000 | AA198: 2.2 | AB198: 1058000 | AC198: 3100 | AD198: 1.2 | AE198: 8.1 | AF198: 0 | AG198: 6.82 | AH198: 9.809 | AI198: 23.191 | AJ198: 0.46 | AK198: 60
A199: Breakfast Protein | B199: pork, bacon | C199: 229 | D199: 114.5 | E199: 0.66 | F199: 45.04 | G199: 37 | H199: 281 | I199: 113 | J199: 3828 | K199: 520 | L199: 210 | M199: 2 | N199: 0.69 | O199: 0 | P199: 63 | Q199: 270 | R199: 0 | S199: 46600 | T199: 6000 | U199: 70 | V199: 480 | W199: 12000 | X199: 22 | Y199: 188000 | Z199: 208000 | AA199: 20.2 | AB199: 833000 | AC199: 1170 | AD199: 40.2 | AE199: 0 | AF199: 68 | AG199: 14.993 | AH199: 20.047 | AI199: 4.821 | AJ199: 0 | AK199: 0
A200: Protein | B200: pork, lean loin | C200: 60 | D200: 30 | E200: 0 | F200: 3.53 | G200: 2 | H200: 982 | I200: 337 | J200: 6610 | K200: 837 | L200: 765 | M200: 0 | N200: 0.52 | O200: 0 | P200: 10 | Q200: 220 | R200: 0 | S200: 79700 | T200: 6000 | U200: 89 | V200: 970 | W200: 27000 | X200: 14 | Y200: 243000 | Z200: 393000 | AA200: 30.3 | AB200: 52000 | AC200: 1870 | AD200: 74.97 | AE200: 0 | AF200: 65 | AG200: 1.181 | AH200: 1.355 | AI200: 0.562 | AJ200: 0 | AK200: 0
A201: Lunch Protein | B201: pork, leg (ham), lean | C201: 68 | D201: 34 | E201: 0 | F201: 5.41 | G201: 6 | H201: 875 | I201: 228 | J201: 5338 | K201: 805 | L201: 500 | M201: 9 | N201: 0.71 | O201: 900 | P201: 23 | Q201: 170 | R201: 0 | S201: 72300 | T201: 6000 | U201: 75 | V201: 1010 | W201: 25000 | X201: 29 | Y201: 229000 | Z201: 369000 | AA201: 35.4 | AB201: 55000 | AC201: 2270 | AD201: 72.9 | AE201: 0 | AF201: 68 | AG201: 1.87 | AH201: 2.44 | AI201: 0.58 | AJ201: 0 | AK201: 0
... 71 more rows
